Cogmind - Beta 10.2 @@@ ROGUE MODE // 2021.02.21 @ 01:13:13 Player: aperiodic Result: Destroyed by P-80 Master with Gamma Rifle Performance ------------- Evolutions (9) 4500 Regions Visited (36) 7200 Robots Destroyed (216) 1080 Value Destroyed (7794) 7794 Prototype IDs (251) 5020 Alien Tech Used (4) 800 Bonus (8371) 8371 TOTAL SCORE: 34765 Bonus ------- High Alert Combat Kills 1323 Follower Combat Kills 817 Aligned with FarCom 300 Met Data Miner 300 Used Data Conduit 3000 Met Imprinter 300 Was Imprinted 300 Met Zhirov 300 Met Warlord at Base 500 MAIN.C Attacked Warlord 500 Pursued by Intercept 1500 Friendly Fire -769 Cogmind --------- Core Integrity 0/1600 Matter 296/300 Energy 91/100 System Corruption 2% Temperature Cool (0) Movement Core (50) Location -1/Access Parts ------- > --- POWER (2) -------- (None) > --- PROPULSION (6) --- (None) > --- UTILITY (16) ----- (None) > --- WEAPON (2) ------- (None) > --- INVENTORY (4) ---- Core Stripper Peak State ------------ > --- POWER ------------ Light Particle Reactor Light Quantum Reactor > --- PROPULSION ------- Centrium Heavy Treads Biometal Heavy Treads > --- UTILITY ---------- Advanced Power Amplifier Experimental Coolant Injector Medium Storage Unit Experimental Energy Well Experimental Signal Interpreter Experimental Targeting Computer Experimental Armor Integrity Analyzer Experimental Utility Shielding SHELL Armor Advanced Thermal Shield AEGIS Remote Shield Advanced Hacking Suite Deep Network Scanner Ghost Barrier > --- WEAPON ----------- Core Stripper > --- INVENTORY -------- Zionite Biocell Experimental Sensor Array Centrium Medium Armor Plating Cooled Nova Cannon Improved Potential Cannon Compact Tesla Bomb Launcher Mini Smartbomb Launcher [Rating: 214] Favorites ----------- Power Micro Nuclear Core Engine Light Ion Engine Power Core Micro Nuclear Core Reactor Light Antimatter Reactor Propulsion Improved VTOL Module Treads Light Treads Leg Makeshift Leg Wheel Wheel Hover Unit Airjet Flight Unit Improved VTOL Module Utility Hacking Suite Device Experimental Sensor Array Storage Large Storage Unit Processor Advanced Signal Interpreter Hackware Hacking Suite Protection Improved Propulsion Shielding Weapon Spear Energy Gun EM Pulse Gun Energy Cannon Cooled Nova Cannon Ballistic Gun Minigun Ballistic Cannon Light Cannon Launcher Mini Smartbomb Launcher Special Weapon Plasma Cutter Impact Weapon Core Stripper Slashing Weapon Plasma Sword Piercing Weapon Spear Build | -11 -10 -10 -9 -9 -9 -8 -8 -7 -7 -7 -7 -7 -7 -6 -6 -6 -6 -6 -5 -5 -5 -5 -5 -4 -4 -4 -4 -4 -4 -4 -3 -3 -3 -2 -2 -1 ------- Run | Scr Mat Min Mat Min Exi Min Mat Fac Was Fac Low Low Zio Pro Fac Low Low Dat Pro Fac Upp Upp War Pro Fac Was Fac Upp Upp Zhi Pro Res Tes Res Qua Acc Slots Evolved 18 | . . . 2 . . . 2 2 . . . . . . 2 . . . . 2 . . . . 2 . . . . . . 2 . 2 . 2 Power 1 | . . . . . . . . . . . . . . . . . . . . . . . . . . . . . . . . 1 . . . . Propulsion 3 | . . . . . . . . . . . . . . . . . . . . . . . . . . . . . . . . . . 1 . 2 Utility 14 | . . . 2 . . . 2 2 . . . . . . 2 . . . . 2 . . . . 2 . . . . . . 1 . 1 . . Weapon . | . . . . . . . . . . . . . . . . . . . . . . . . . . . . . . . . . . . . . Parts Attached 311 | 6 10 4 7 1 29 9 64 9 4 16 4 . 4 . 11 3 . 3 6 2 2 2 3 2 18 2 7 . 2 7 . 13 38 2 20 1 Power 28 | 1 . . 1 . 2 . 2 1 1 5 . . . . 2 . . . . 1 . . . . 1 . 1 . . 1 . 1 6 . 2 . Engine 5 | 1 . . 1 . 1 . 1 . . 1 . . . . . . . . . . . . . . . . . . . . . . . . . . Core 11 | . . . . . . . 1 1 1 4 . . . . 2 . . . . 1 . . . . 1 . . . . . . . . . . . Reactor 12 | . . . . . 1 . . . . . . . . . . . . . . . . . . . . . 1 . . 1 . 1 6 . 2 . Propulsion 52 | 2 4 4 . . 11 1 10 1 1 4 . . . . . . . . . . . 1 . 1 2 1 . . . 3 . 1 4 1 . . Treads 20 | . 2 2 . . 5 . 6 . . . . . . . . . . . . . . . . . . . . . . . . . 4 1 . . Leg 5 | . . . . . 3 1 1 . . . . . . . . . . . . . . . . . . . . . . . . . . . . . Wheel 9 | 2 2 2 . . 3 . . . . . . . . . . . . . . . . . . . . . . . . . . . . . . . Hover 2 | . . . . . . . 1 . . 1 . . . . . . . . . . . . . . . . . . . . . . . . . . Flight 16 | . . . . . . . 2 1 1 3 . . . . . . . . . . . 1 . 1 2 1 . . . 3 . 1 . . . . Utility 117 | 1 3 . 1 . 10 . 17 4 2 6 3 . 4 . 7 2 . 2 3 . 2 1 2 1 3 1 . . 2 3 . 9 17 1 10 . Device 53 | . . . . . 4 . 2 1 1 3 1 . 1 . 5 1 . . 3 . 1 1 2 1 . 1 . . 2 1 . 2 11 1 8 . Storage 17 | 1 3 . 1 . 5 . 1 . . . 1 . . . . . . . . . . . . . . . . . . . . 1 2 . 2 . Processor 11 | . . . . . 1 . 2 2 . 1 . . . . 1 . . . . . . . . . . . . . . . . 3 1 . . . Hackware 18 | . . . . . . . 6 1 1 2 . . . . . 1 . 2 . . 1 . . . 3 . . . . 1 . . . . . . Protection 18 | . . . . . . . 6 . . . 1 . 3 . 1 . . . . . . . . . . . . . . 1 . 3 3 . . . Artifact . | . . . . . . . . . . . . . . . . . . . . . . . . . . . . . . . . . . . . . Weapon 114 | 2 3 . 5 1 6 8 35 3 . 1 1 . . . 2 1 . 1 3 1 . . 1 . 12 . 6 . . . . 2 11 . 8 1 Energy Gun 3 | . 1 . 1 . . . 1 . . . . . . . . . . . . . . . . . . . . . . . . . . . . . Energy Cannon 15 | . . . . . . . . . . . . . . . . . . . . . . . . . 4 . 1 . . . . 1 6 . 3 . Ballistic Gun 19 | 2 . . 1 . 4 3 9 . . . . . . . . . . . . . . . . . . . . . . . . . . . . . Ballistic Cannon 18 | . 2 . 1 1 . 2 10 . . . . . . . . . . . . . . . . . . . . . . . . . . . 2 . Launcher 32 | . . . 2 . 2 3 13 1 . . 1 . . . 1 1 . . 2 . . . . . 1 . 2 . . . . . . . 2 1 Special Weapon 5 | . . . . . . . . 1 . . . . . . . . . . . . . . . . 1 . . . . . . 1 2 . . . Impact Weapon 1 | . . . . . . . . . . . . . . . . . . . . . . . . . . . . . . . . . . . 1 . Slashing Weapon 16 | . . . . . . . 2 1 . . . . . . . . . . . . . . 1 . 6 . 3 . . . . . 3 . . . Piercing Weapon 5 | . . . . . . . . . . 1 . . . . 1 . . 1 1 1 . . . . . . . . . . . . . . . . Special Melee Weapon . | . . . . . . . . . . . . . . . . . . . . . . . . . . . . . . . . . . . . . Unidentified Prototypes 26 | . . . 1 . 6 . 4 . . . . . 1 . 1 . . 2 . . . . . 1 . . . . . 1 . 1 5 . 2 1 Parts Lost 41 | . . . . . 4 1 12 3 . 5 . . . . . . . 1 . 1 . . . . . . 4 . . . . . 2 . 7 1 Power 8 | . . . . . 1 . 2 1 . . . . . . . . . . . . . . . . . . . . . . . . 2 . 2 . Propulsion 9 | . . . . . 2 . 2 . . 3 . . . . . . . . . 1 . . . . . . . . . . . . . . 1 . Utility 13 | . . . . . . . 2 1 . 1 . . . . . . . 1 . . . . . . . . 4 . . . . . . . 3 1 Weapon 11 | . . . . . 1 1 6 1 . 1 . . . . . . . . . . . . . . . . . . . . . . . . 1 . Highest Loss Streak 7 | . . . . . 4 1 6 2 . 2 . . . . . . . 1 . 1 . . . . . . 3 . . . . . 2 . 7 1 Average Slot Usage (%) 88 | . 99 100 77 88 81 100 90 83 84 77 92 92 92 92 93 100 100 100 98 87 79 84 93 93 95 100 98 80 87 90 100 94 92 82 78 1 Engine 2 | . 14 14 10 11 7 . 3 3 . 2 . . . . . . . . . . . . . . . . . . . . . . . . . . Core 2 | . . . . . . . 2 3 7 2 7 7 7 7 6 6 6 6 6 4 5 5 5 5 5 5 . . . . . . . . . . Reactor 2 | . . . . . 3 11 1 . . . . . . . . . . . . . . . . . . . 4 5 5 5 5 4 7 8 7 . Treads 3 | . 10 4 . . 6 . 11 . . . . . . . . . . . . . . . . . . . . . . . . . 5 7 7 . Leg 2 | . . . . . 6 22 4 . . . . . . . . . . . . . . . . . . . . . . . . . . . . . Wheel 2 | . 17 23 22 22 7 . . . . . . . . . . . . . . . . . . . . . . . . . . . . . . . Flight 6 | . . . . . . . . 15 7 8 15 15 15 15 13 13 13 13 13 11 5 7 11 12 15 15 15 15 15 15 15 13 4 . . . Device 11 | . . . . . 2 . 1 7 12 11 14 7 7 7 18 20 20 20 18 17 17 17 29 34 30 32 33 15 22 21 25 21 18 16 16 . Storage 9 | . 27 28 22 33 20 33 22 . . . . . . . . . . . . . . . . . . . . . . . . . 8 8 8 1 Processor 9 | . . . . . 6 11 15 14 15 8 7 7 7 7 11 13 13 13 13 11 11 11 7 5 5 5 5 5 5 5 5 9 12 12 11 . Hackware 17 | . . . . . . . 1 29 31 37 38 38 38 38 28 26 26 26 26 23 26 29 25 22 28 27 25 25 25 27 30 26 16 12 10 . Protection 3 | . . . . . . . 7 . . . . 7 7 7 4 6 6 6 6 5 5 5 5 5 5 5 5 5 5 6 10 9 8 8 7 . Ballistic Gun 2 | . 19 . . . 14 11 3 . . . . . . . . . . . . . . . . . . . . . . . . . . . . . Ballistic Cannon 2 | . 3 28 9 3 1 9 9 . . . . . . . . . . . . . . . . . . . . . . . . . . . 2 . Slashing Weapon 1 | . . . . . . . . 7 7 1 . . . . . . . . . . . . 1 5 4 5 3 5 5 5 5 4 3 4 . . Piercing Weapon 1 | . . . . . . . . . . . 7 7 7 7 7 11 6 12 11 5 5 5 3 . . . . . . . . . . . . . Naked Turns 54 | . . . . . . . . . . . . . . . . . . . . . . . . . . . . . . . . . . . 6 48 Heaviest Build 120 | 9 41 41 75 77 120 71 79 11 14 13 17 11 11 11 17 23 23 23 24 24 15 15 24 24 24 25 33 23 26 30 30 41 101 90 117 2 Greatest Support 155 | 20 40 40 20 20 50 50 50 12 20 12 12 12 12 12 24 24 24 24 24 24 18 18 27 27 25 41 41 29 29 39 39 43 127 155 155 3 Greatest Overweight (x) 12 | 1 2 2 3 3 5 1 12 . 4 4 1 . . . 1 . . . . . . . . . 1 . 1 . . 1 . . 1 . . . Average Overweight (x) . | . . 1 1 3 1 1 . . . . . . . . . . . . . . . . . . . . . . . . . . . . . . Largest Inventory Capacity 44 | 6 16 16 24 24 44 18 18 4 4 4 12 4 4 4 4 4 4 4 4 4 4 4 4 4 4 4 4 4 4 4 4 4 8 8 8 4 Average Capacity 9 | 5 11 16 16 24 19 18 17 4 4 4 4 4 4 4 4 4 4 4 4 4 4 4 4 4 4 4 4 4 4 4 4 4 7 8 7 4 Most Carried 23 | 6 13 16 18 20 23 18 18 4 4 4 4 4 4 4 4 4 4 4 4 4 4 4 4 4 4 4 4 4 4 4 4 4 8 8 8 4 Average Carried 8 | 4 8 15 16 19 15 17 16 4 3 3 3 4 3 4 3 4 4 4 3 4 3 4 3 4 3 3 4 4 4 3 4 3 6 7 7 2 Final Capacity 24 | 6 16 16 24 24 18 18 4 4 4 4 4 4 4 4 4 4 4 4 4 4 4 4 4 4 4 4 4 4 4 4 4 4 8 8 4 4 Final Carried 20 | 6 13 16 18 20 18 17 4 4 4 4 4 4 4 4 4 4 4 4 4 4 4 4 4 4 4 4 4 4 4 4 4 4 8 8 4 2 Class Distribution -------------------- 17% | Mutant 15% | Hacker-Mutant 14% | Wizard-Sprinter 13% | Hacker-Sprinter 11% | Scavenger-Mutant 11% | Wizard-Mutant 8% | Hacker-Scout 6% | Hauler-Mutant Dominant Class ---------------- Mutant | -10/Materials Mutant | -10/Mines Mutant | -9/Materials Hauler-Mutant | -9/Mines Hauler-Mutant | -9/Exiles Scavenger-Mutant | -8/Mines Mutant | -8/Materials Hacker-Scout | -7/Factory Hacker-Scout | -7/Waste Hacker-Mutant | -7/Factory Hacker-Scout | -7/Lower Caves Hacker-Sprinter | -7/Lower Caves Hacker-Sprinter | -7/Zion Hacker-Sprinter | -6/Proximity Caves Hacker-Sprinter | -6/Factory Hacker-Sprinter | -6/Lower Caves Hacker-Sprinter | -6/Lower Caves Wizard-Sprinter | -6/Data Miner Wizard-Sprinter | -5/Proximity Caves Wizard-Sprinter | -5/Factory Wizard-Mutant | -5/Upper Caves Wizard-Mutant | -5/Upper Caves Wizard-Mutant | -5/Warlord Wizard-Mutant | -4/Proximity Caves Wizard-Sprinter | -4/Factory Wizard-Sprinter | -4/Waste Wizard-Sprinter | -4/Factory Wizard-Sprinter | -4/Upper Caves Wizard-Mutant | -4/Upper Caves Wizard-Sprinter | -4/Zhirov Wizard-Sprinter | -3/Proximity Caves Wizard-Sprinter | -3/Research Wizard-Mutant | -3/Testing Hacker-Mutant | -2/Research Hacker-Mutant | -2/Quarantine Mutant | -1/Access Resources | -11 -10 -10 -9 -9 -9 -8 -8 -7 -7 -7 -7 -7 -7 -6 -6 -6 -6 -6 -5 -5 -5 -5 -5 -4 -4 -4 -4 -4 -4 -4 -3 -3 -3 -2 -2 -1 ----------- Run | Scr Mat Min Mat Min Exi Min Mat Fac Was Fac Low Low Zio Pro Fac Low Low Dat Pro Fac Upp Upp War Pro Fac Was Fac Upp Upp Zhi Pro Res Tes Res Qua Acc Matter Collected 6166 | 273 170 88 70 83 1123 387 1334 30 108 160 26 54 20 20 114 61 35 10 93 36 20 20 . 102 160 79 390 92 20 . . 210 439 29 309 1 Remotely . | . . . . . . . . . . . . . . . . . . . . . . . . . . . . . . . . . . . . . Salvage Created 7835 | 144 278 96 257 77 350 375 2275 37 . 276 . . 105 . 290 15 . 23 33 129 . . . . 216 . 155 32 . . . 104 1640 42 886 . Parts 436 | 14 15 9 25 2 57 38 133 3 . 8 . . . . 16 . . 4 1 3 . . . . 14 . 5 3 . . . 4 54 1 27 . Haulers Intercepted 10 | . 2 . . . . . 6 . . . . . . . . . . . . . . . . . . . . . . . . 1 1 . . . Recyclers Shooed 7 | . . . . . . . 3 . . . . . . . . . . . . . . . . . . . . . . . . . 3 . 1 . Parts Field Recycled . | . . . . . . . . . . . . . . . . . . . . . . . . . . . . . . . . . . . . . Retrieved Matter . | . . . . . . . . . . . . . . . . . . . . . . . . . . . . . . . . . . . . . Parts Self-Destructed 9 | . . . . . . . . . . . . . . 7 . . . . 1 . . . 1 . . . . . . . . . . . . . Prevented 9 | . . . . . . . . . . . . . . 2 . . . . . . . . 7 . . . . . . . . . . . . . Kills | -11 -10 -10 -9 -9 -9 -8 -8 -7 -7 -7 -7 -7 -7 -6 -6 -6 -6 -6 -5 -5 -5 -5 -5 -4 -4 -4 -4 -4 -4 -4 -3 -3 -3 -2 -2 -1 ------- Run | Scr Mat Min Mat Min Exi Min Mat Fac Was Fac Low Low Zio Pro Fac Low Low Dat Pro Fac Upp Upp War Pro Fac Was Fac Upp Upp Zhi Pro Res Tes Res Qua Acc Combat Hostiles Destroyed 134 | . 4 3 11 2 4 14 47 . . . . . . . 1 1 . . 1 . . . . . 2 . 3 . . . . . 19 1 15 6 Melee 8 | . . . . . . . 1 . . . . . . . . . . . . . . . . . 1 . . . . . . . 6 . . . Guns 15 | . 4 . 1 . 1 6 3 . . . . . . . . . . . . . . . . . . . . . . . . . . . . . Cannons 40 | . . 3 . 1 . 2 12 . . . . . . . . . . . . . . . . . . . . . . . . . 13 1 8 . AOE 68 | . . . 10 1 3 6 29 . . . . . . . 1 1 . . 1 . . . . . 1 . 3 . . . . . . . 6 6 Classes Destroyed 23 | 2 2 2 2 . 3 . 7 . . . . . . . 1 . . . . . . . . . 1 . 1 1 . . . . . . 1 . Worker 18 | . . 1 . . . 1 8 1 . 4 . . . . 1 . . . . . . . . . 1 . . . . . . . . . . 1 Builder 4 | . . . . . . . 2 . . . . . . . . . . . . . . . . . . . . . . . . . . . 1 1 Tunneler 7 | 3 . . . . . 3 . . . . . . . . . . . . . . . . . . 1 . . . . . . . . . . . Hauler 10 | . 2 . . . . . 6 . . . . . . . . . . . . . . . . . . . . . . . . 1 1 . . . Recycler 16 | 1 . 1 . . . 1 2 . . 2 . . . . 1 . . . . 1 . . . . . . . . . . . . 5 . 1 1 Mechanic 1 | . . . . . . . 1 . . . . . . . . . . . . . . . . . . . . . . . . . . . . . Operator 5 | . . . . . . . 2 . . . . . . . 2 . . . . . . . . . . . 1 . . . . . . . . . Turret 1 | . . . . . 1 . . . . . . . . . . . . . . . . . . . . . . . . . . . . . . . Watcher 9 | . . . 1 . . . 5 1 . . . . . . 1 . . . . . . . . . 1 . . . . . . . . . . . Swarmer 33 | . . 3 4 . . 11 4 . . . . . . . . 1 . . . . . . . . . . . . . . . . . . 5 5 Grunt 56 | . 4 . 6 2 . 2 29 . . . . . . . 1 . . . 1 . . . . . . . 3 . . . . . 4 . 4 . Brawler 1 | . . . . . . . 1 . . . . . . . . . . . . . . . . . . . . . . . . . . . . . Duelist 4 | . . . 1 . . 1 2 . . . . . . . . . . . . . . . . . . . . . . . . . . . . . Protector 1 | . . . . . . . 1 . . . . . . . . . . . . . . . . . . . . . . . . . . . . . Sentry 11 | . . . . . . . 9 . . . . . . . . . . . . . . . . . 1 . . . . . . . . . . 1 Hunter 4 | . . . . . . . 1 . . . . . . . . . . . . . . . . . . . . . . . . . 2 . 1 . Programmer 13 | . . . . . . . . . . . . . . . . . . . . . . . . . 1 . . . . . . . 11 1 . . Tracker 3 | . . . . . . . . . . . . . . . . . . . . . . . . . . . . . . . . . 1 . 2 . Combat Programmer 3 | . . . . . . . . . . . . . . . . . . . . . . . . . . . . . . . . . 1 . 2 . Alpha 7 1 | . . . . . . . . . . . . . . . . . . . . . . . . . . . . . . . . . . . 1 . Zionite 8 | . . . . . 8 . . . . . . . . . . . . . . . . . . . . . . . . . . . . . . . Samaritan 1 | . . . . . . . . . . . . . . . . . . . . . . . . . . . . 1 . . . . . . . . Assembled 3 | . . . . . 3 . . . . . . . . . . . . . . . . . . . . . . . . . . . . . . . Fireman 2 | . . . . . . . . . . . . . . . . . . . . . . . . . . . 2 . . . . . . . . . Mutant 1 | . . . . . . . . . . . . . . . 1 . . . . . . . . . . . . . . . . . . . . . Best Kill Streak 12 | 3 2 5 6 2 4 6 12 1 . 1 . . . . 1 1 . 1 1 1 . . . . 3 . 3 . . . . 1 3 1 5 9 Combat Bots Only 11 | . 2 3 6 2 3 4 11 . . . . . . . 1 1 . . 1 . . . . . 1 . 3 . . . . . 3 1 5 6 Max Kills in Single Turn 9 | 1 1 1 4 1 2 5 4 1 . 1 . . . . 2 1 . 1 1 1 . . . . 3 . 2 1 . . . 1 1 1 3 9 Gunslinging . | . . . . . . . . . . . . . . . . . . . . . . . . . . . . . . . . . . . . . Exploded 6 | . . . 4 1 2 3 4 . . . . . . . 1 1 . . 1 . . . . . 1 . 2 . . . . . . . 2 6 Melee 1 | . . . . . . . 1 . . . . . . . . . . . . . . . . . 1 . . . . . . . 1 . . . Uniques/NPCs Destroyed 5 | . . . . . 4 . . . . . . . . . . . . 1 . . . . . . . . . . . . . . . . . . 8R-AWN (-9/Exiles) EX-HEX (-9/Exiles) EX-DEC (-9/Exiles) EX-BIN (-9/Exiles) Data Miner (-6/Data Miner) Combat | -11 -10 -10 -9 -9 -9 -8 -8 -7 -7 -7 -7 -7 -7 -6 -6 -6 -6 -6 -5 -5 -5 -5 -5 -4 -4 -4 -4 -4 -4 -4 -3 -3 -3 -2 -2 -1 -------- Run | Scr Mat Min Mat Min Exi Min Mat Fac Was Fac Low Low Zio Pro Fac Low Low Dat Pro Fac Upp Upp War Pro Fac Was Fac Upp Upp Zhi Pro Res Tes Res Qua Acc Damage Taken 14559 | . 244 61 171 . 1138 365 2174 291 38 232 . . . 48 30 27 . 145 . 93 . 62 . . 250 . 353 18 . . . 47 1869 552 4643 1708 Core 3667 | . 40 . 34 . 129 130 373 154 . 50 . . . 40 19 . . . . . . 39 . . 58 . 56 . . . . . 142 22 774 1607 Absorbed by Shields 2220 | . . . . . . . . . . . . . . . . . . . . . . . . . . . . . . . . . 831 . 1389 . Reduced by Siege Mode 290 | . . . . . . . . . . . . . . . . . . . . . . . . . . . . . . . . . 96 . 194 . Core Remaining (%) 72 | 100 . 84 . . . 26 32 . . . . . . 65 . . . . 97 . . . . 96 . . . . . . 90 . 89 . 45 . Volleys Fired 500 | 17 29 7 12 3 93 28 108 1 . . 1 . . . 1 3 1 . 3 . . . . . 18 . 8 2 . . . 5 83 14 62 1 Largest 2 | 2 2 2 2 2 2 2 2 1 . . 1 . . . 1 1 1 . 1 . . . . . 1 . 1 1 . . . 1 1 1 2 1 Hottest 200 | 40 60 70 75 75 50 74 83 39 . . 39 . . . 39 39 39 . 39 . . . . . 110 . 110 80 . . . 110 150 150 200 . Shots Fired 721 | 34 58 14 17 5 171 52 164 1 . . 1 . . . 1 3 1 . 3 . . . . . 18 . 8 2 . . . 5 81 14 67 1 Gun 317 | 34 58 . 8 2 159 27 29 . . . . . . . . . . . . . . . . . . . . . . . . . . . . . Cannon 322 | . . 14 5 2 . 21 102 . . . . . . . . . . . . . . . . . 17 . 1 . . . . 4 81 14 61 . Launcher 81 | . . . 4 1 12 4 33 1 . . 1 . . . 1 3 1 . 3 . . . . . 1 . 7 2 . . . . . . 6 1 Special 1 | . . . . . . . . . . . . . . . . . . . . . . . . . . . . . . . . 1 . . . . Kinetic 440 | 34 49 14 8 2 159 48 118 . . . . . . . . . . . . . . . . . . . . . . . . . . . 8 . Thermal 194 | . 9 . . . . . 13 . . . . . . . . . . . . . . . . . 17 . 1 . . . . 5 81 14 53 1 Explosive 64 | . . . 4 1 12 4 21 1 . . 1 . . . 1 3 1 . 3 . . . . . 1 . 7 2 . . . . . . 2 . Electromagnetic 23 | . . . 5 2 . . 12 . . . . . . . . . . . . . . . . . . . . . . . . . . . 4 . Robot Hit Streak 28 | 5 11 4 10 2 10 16 19 . . . . . . . 11 . . . . . . . . . . . . . . . . . 28 13 22 . Robot Miss Streak 4 | 4 4 2 2 1 4 1 2 . . . . . . . . 2 . . . . . . . . . . . . . . . . 2 1 2 . Penetration Max . | . . . . . . . . . . . . . . . . . . . . . . . . . . . . . . . . . . . . . Secondary Targets . | . . . . . . . . . . . . . . . . . . . . . . . . . . . . . . . . . . . . . Shots Hit Robots 557 | 17 42 6 12 4 115 38 138 5 . 11 . . 4 . 9 . . 1 . 2 . . . . 6 . 1 1 . . . 2 94 1 48 . Core Hits 360 | 8 16 5 16 5 38 22 113 2 . 5 . . 2 . 7 4 . 1 8 1 . . . . 9 . 16 5 . . . 1 34 1 29 12 Critical Hits 20 | . . . 1 . 1 1 2 . . . . . . . . . . . . . . . . . . . . . . . . 1 11 . 3 . Critical Kills 6 | . . . 1 . . . 1 . . . . . . . . . . . . . . . . . . . . . . . . . 4 . . . Critical Parts Destroyed 13 | . . . . . 1 1 1 . . . . . . . . . . . . . . . . . . . . . . . . 1 7 . 2 . Melee Attacks 215 | . . . . . . . 13 20 1 22 1 . 4 1 27 1 . 7 2 11 . 5 . 1 14 . 9 1 . . 3 13 53 . 6 . Kinetic 6 | . . . . . . . . . . . . . . . . . . . . . . . . . . . . . . . . . . . 6 . Impact . | . . . . . . . . . . . . . . . . . . . . . . . . . . . . . . . . . . . . . Slashing 143 | . . . . . . . 13 20 1 15 . . . . . . . . . . . . . 1 14 . 9 1 . . 3 13 53 . . . Piercing 66 | . . . . . . . . . . 7 1 . 4 1 27 1 . 7 2 11 . 5 . . . . . . . . . . . . . . Sneak Attacks 27 | . . . . . . . 6 1 . 5 . . . . 3 . . 1 . 2 . . . . 1 . . 1 . . . 1 6 . . . Combat Hostiles . | . . . . . . . . . . . . . . . . . . . . . . . . . . . . . . . . . . . . . Follow-up Attacks . | . . . . . . . . . . . . . . . . . . . . . . . . . . . . . . . . . . . . . Damage Inflicted 38467 | 139 369 124 745 153 2557 1214 6515 288 . 751 1 . 333 . 691 132 . 97 300 238 . . . . 736 . 1799 616 . . . 197 7412 61 4090 8909 Guns 3329 | 139 369 . 90 28 1962 355 386 . . . . . . . . . . . . . . . . . . . . . . . . . . . . . Cannons 9155 | . . 124 75 18 . 307 1622 . . . . . . . . . . . . . . . . . . . . . . . . . 4701 61 2247 . Explosions 18889 | . . . 580 107 595 552 3613 . . . 1 . . . 181 132 . . 300 . . . . . 244 . 1714 434 . . . . . . 1566 8870 Melee 6996 | . . . . . . . 874 288 . 723 . . 333 . 510 . . 97 . 238 . . . . 492 . 85 182 . . . 197 2711 . 266 . Ramming 98 | . . . . . . . 20 . . 28 . . . . . . . . . . . . . . . . . . . . . . . . 11 39 Kinetic 5702 | 139 304 124 93 18 1962 662 1802 . . . . . . . . . . . . . . . . . . . . . . . . . . . 598 . Thermal 17490 | . 65 . 78 . . . 603 . . . . . . . . . . . . . . . . . 20 . 276 . . . . . 4701 61 2816 8870 Explosive 7014 | . . . 502 107 595 552 2118 . . . 1 . . . 181 132 . . 300 . . . . . 69 . 1438 434 . . . . . . 585 . Electromagnetic 1433 | . . . 72 28 . . 1098 . . . . . . . . . . . . . . . . . 155 . . . . . . . . . 80 . Impact . | . . . . . . . . . . . . . . . . . . . . . . . . . . . . . . . . . . . . . Slashing 5392 | . . . . . . . 874 288 . 563 . . . . . . . . . . . . . . 492 . 85 182 . . . 197 2711 . . . Piercing 1338 | . . . . . . . . . . 160 . . 333 . 510 . . 97 . 238 . . . . . . . . . . . . . . . . Highest Corruption 14 | . . . . . . . 1 . 6 10 . . . . 2 . . . . 1 1 . . . 4 4 4 5 5 . . . 14 2 10 2 Average Corruption 4 | . . . . . . . 1 . 6 6 . . . . 1 . . . . 1 1 . . . 3 4 4 5 3 . . . 9 1 2 2 Corruption Purged 20 | . . . . . . . . . . 12 . . . . 2 . . . . . 1 . . . . . . . 5 . . . . . . . Effects 136 | . . . . . . . 10 . 2 32 . . . . . . . . . . 1 . . . 7 2 7 5 2 . . . 50 . 17 1 Message Errors 41 | . . . . . . . 5 . . 12 . . . . . . . . . . 1 . . . 3 2 2 2 . . . . 10 . 4 . Matter Fused 27 | . . . . . . . . . 2 6 . . . . . . . . . . . . . . 2 . 3 . . . . . 12 . 2 . Heat Flow Errors 9 | . . . . . . . . . . 3 . . . . . . . . . . . . . . 1 . . . 2 . . . 3 . . . Energy Discharges 8 | . . . . . . . 2 . . . . . . . . . . . . . . . . . 1 . . . . . . . 3 . 1 1 Parts Rejected 1 | . . . . . . . . . . . . . . . . . . . . . . . . . . . . . . . . . 1 . . . Data Loss (minor) 22 | . . . . . . . 2 . . 8 . . . . . . . . . . . . . . . . 1 2 . . . . 6 . 3 . Data Loss (major) 3 | . . . . . . . . . . . . . . . . . . . . . . . . . . . . 1 . . . . 2 . . . Misfires 1 | . . . . . . . . . . . . . . . . . . . . . . . . . . . . . . . . . . . 1 . Alerts 2 | . . . . . . . . . . . . . . . . . . . . . . . . . . . . . . . . . 2 . . . Misdirections 6 | . . . . . . . . . . 2 . . . . . . . . . . . . . . . . . . . . . . 2 . 2 . Targeting Errors 14 | . . . . . . . 1 . . 1 . . . . . . . . . . . . . . . . 1 . . . . . 7 . 4 . Weapon Failures 2 | . . . . . . . . . . . . . . . . . . . . . . . . . . . . . . . . . 2 . . . Overload Shots 3 | . . . . . . . . . . . . . . . . . . . . . . . . . . . . . . . . . 1 1 1 . Overflow Damage 4157 | . . . 5 . 4 42 327 11 . 148 . . 136 . 106 60 . . 16 83 . . . . 99 . 108 28 . . . . 1392 . 428 1164 Projectiles 960 | . . . 5 . . 2 55 . . . . . . . . . . . . . . . . . . . . . . . . . 797 . 101 . Explosions 1803 | . . . . . 4 40 53 . . . . . . . . 60 . . 16 . . . . . 3 . 108 28 . . . . . . 327 1164 Melee 1394 | . . . . . . . 219 11 . 148 . . 136 . 106 . . . . 83 . . . . 96 . . . . . . . 595 . . . Knockbacks 33 | . . . 2 . . 4 24 . . . . . . . . . . . . . . . . . . . . . . . . . . . 3 . Impact . | . . . . . . . . . . . . . . . . . . . . . . . . . . . . . . . . . . . . . Kinetic 28 | . . . 2 . . 4 19 . . . . . . . . . . . . . . . . . . . . . . . . . . . 3 . Secondary 5 | . . . . . . . 5 . . . . . . . . . . . . . . . . . . . . . . . . . . . . . Self-Inflicted Damage 1538 | . . . 5 . 24 44 126 . . 14 . . . . . . . . . . . . . . . . . . . . . . . . 223 1102 Shots 18 | . . . 1 . 1 2 6 . . . . . . . . . . . . . . . . . . . . . . . . . . . 6 2 Rammed 16 | . . . . . . . 3 . . 2 . . . . . . . . . . . . . . . . . . . . . . . . 4 7 Targets Rammed 16 | . . . . . . . 3 . . 2 . . . . . . . . . . . . . . . . . . . . . . . . 4 7 Kicked . | . . . . . . . . . . . . . . . . . . . . . . . . . . . . . . . . . . . . . Crushed . | . . . . . . . . . . . . . . . . . . . . . . . . . . . . . . . . . . . . . Highest Temperature 335 | . 60 54 14 . 8 27 118 . . 272 . . . . . . . . . . . . . . 250 . 121 52 247 . . 28 335 64 15 . Average Temperature 50 | . 17 25 10 . 4 11 32 . . 123 . . . . . . . . . . . . . . 111 . 49 29 102 . . 14 97 36 9 . Received Heat Transfer 1546 | . 138 . 57 . . 90 738 18 . 72 . . . . 9 . . 18 . 18 . . . . 21 . 9 9 . . . 12 35 54 248 . Effects 2 | . . . . . . . . . . . . . . . . . . . . . . . . . . . . . . . . . 2 . . . Shutdowns 1 | . . . . . . . . . . . . . . . . . . . . . . . . . . . . . . . . . 1 . . . Interference 1 | . . . . . . . . . . . . . . . . . . . . . . . . . . . . . . . . . 1 . . . Siege Activations 9 | . . . . . . . . . . . . . . . . . . . . . . . . . . . . . . . . . 7 . 2 . Total Turns 246 | . . . . . . . . . . . . . . . . . . . . . . . . . . . . . . . . . 190 . 56 . Longest Duration 54 | . . . . . . . . . . . . . . . . . . . . . . . . . . . . . . . . . 54 . 29 . Robots Corrupted 2 | . . . . . . . 2 . . . . . . . . . . . . . . . . . . . . . . . . . . . . . Combat Hostiles 2 | . . . . . . . 2 . . . . . . . . . . . . . . . . . . . . . . . . . . . . . Parts Fried 7 | . . . . . . . 5 . . . . . . . . . . . . . . . . . 2 . . . . . . . . . . . Impact Corruptions . | . . . . . . . . . . . . . . . . . . . . . . . . . . . . . . . . . . . . . Robots Melted . | . . . . . . . . . . . . . . . . . . . . . . . . . . . . . . . . . . . . . Combat Hostiles . | . . . . . . . . . . . . . . . . . . . . . . . . . . . . . . . . . . . . . Parts Melted 7 | . . . . . . . . . . . . . . . . . . . . . . . . . . . . . . . . . 6 1 . . Heat Transferred 5742 | . 150 . 100 . . . 794 . . . . . . . . . . . . . . . . . 50 . 250 . . . . . 2351 37 1930 80 Parts Sabotaged . | . . . . . . . . . . . . . . . . . . . . . . . . . . . . . . . . . . . . . Parts Stolen . | . . . . . . . . . . . . . . . . . . . . . . . . . . . . . . . . . . . . . Parts Stripped . | . . . . . . . . . . . . . . . . . . . . . . . . . . . . . . . . . . . . . Power Chain Reactions 6 | . . . 1 . . . 4 . . . . . . . . . . . . . . . . . 1 . . . . . . . . . . . Missiles Intercepted . | . . . . . . . . . . . . . . . . . . . . . . . . . . . . . . . . . . . . . Alert | -11 -10 -10 -9 -9 -9 -8 -8 -7 -7 -7 -7 -7 -7 -6 -6 -6 -6 -6 -5 -5 -5 -5 -5 -4 -4 -4 -4 -4 -4 -4 -3 -3 -3 -2 -2 -1 ------- Run | Scr Mat Min Mat Min Exi Min Mat Fac Was Fac Low Low Zio Pro Fac Low Low Dat Pro Fac Upp Upp War Pro Fac Was Fac Upp Upp Zhi Pro Res Tes Res Qua Acc Peak Influence 1277 | 20 196 80 473 234 . 250 1180 527 224 498 . . . . 165 . . . . 101 . . . . 642 224 636 . . . . 156 610 477 612 1277 Initial 403 | . 13 . 7 184 . . 12 403 123 142 . . . . . . . . . 50 . . . . 37 224 156 . . . . 50 . 324 239 367 Average 293 | 8 112 20 200 190 . 118 683 347 187 248 . . . . 45 . . . . 70 . . . . 366 224 390 . . . . 71 244 373 390 916 Maximum Alert Level 4 | . . . 2 1 . 1 4 2 1 2 . . . . . . . . . . . . . . 2 1 2 . . . . . 2 2 2 4 Low Security (%) 47 | 100 100 100 76 70 . 89 3 10 33 29 . . . . 100 . . . . 100 . . . . 12 . 18 . . . . 100 61 . . . Level 1 22 | . . . 4 29 . 10 6 45 66 64 . . . . . . . . . . . . . . 74 100 41 . . . . . . 72 44 39 Level 2 21 | . . . 19 . . . 42 44 . 6 . . . . . . . . . . . . . . 12 . 39 . . . . . 38 27 55 . Level 3 7 | . . . . . . . 43 . . . . . . . . . . . . . . . . . . . . . . . . . . . . . Level 4 1 | . . . . . . . 4 . . . . . . . . . . . . . . . . . . . . . . . . . . . . 60 Level 5 . | . . . . . . . . . . . . . . . . . . . . . . . . . . . . . . . . . . . . . High Security . | . . . . . . . . . . . . . . . . . . . . . . . . . . . . . . . . . . . . . Max Security . | . . . . . . . . . . . . . . . . . . . . . . . . . . . . . . . . . . . . . Squads Dispatched 42 | . . . 3 . . 1 9 3 . 1 . . . . . . . . . 3 . . . . . . 3 . . . . 2 8 1 8 . Investigation 8 | . . . 1 . . . 3 1 . . . . . . . . . . . 1 . . . . . . 1 . . . . . . . 1 . Extermination 10 | . . . . . . . . 1 . 1 . . . . . . . . . . . . . . . . . . . . . 1 5 1 1 . Reinforcement 13 | . . . 2 . . 1 4 1 . . . . . . . . . . . . . . . . . . 1 . . . . 1 1 . 2 . Assault 4 | . . . . . . . 2 . . . . . . . . . . . . . . . . . . . 1 . . . . . . . 1 . Garrison . | . . . . . . . . . . . . . . . . . . . . . . . . . . . . . . . . . . . . . Intercept 7 | . . . . . . . . . . . . . . . . . . . . 2 . . . . . . . . . . . . 2 . 3 . Construction Impeded 3 | . . . . . . 1 1 . . . . . . . . . . . . . . . . . . . . . . . . . . . 1 . Haulers Reinforced 1 | . . . . . . . . . . . . . . . . . . . . . . . . . . . . . . . . . 1 . . . Stealth | -11 -10 -10 -9 -9 -9 -8 -8 -7 -7 -7 -7 -7 -7 -6 -6 -6 -6 -6 -5 -5 -5 -5 -5 -4 -4 -4 -4 -4 -4 -4 -3 -3 -3 -2 -2 -1 --------- Run | Scr Mat Min Mat Min Exi Min Mat Fac Was Fac Low Low Zio Pro Fac Low Low Dat Pro Fac Upp Upp War Pro Fac Was Fac Upp Upp Zhi Pro Res Tes Res Qua Acc Distress Signals 16 | . . . 1 . . . 6 1 . 3 . . . . . . . . . . . . . . 1 . 1 . . . . 1 . . 2 . Communications Jammed . | . . . . . . . . . . . . . . . . . . . . . . . . . . . . . . . . . . . . . Distress Signals . | . . . . . . . . . . . . . . . . . . . . . . . . . . . . . . . . . . . . . Times Spotted 405 | . 9 3 25 3 50 14 69 22 6 22 . . . 4 10 4 . 4 4 8 1 3 5 2 13 . 22 4 . . 1 10 28 12 37 10 Peak Tracking Total 12 | . 4 3 9 3 9 4 6 6 2 9 1 . . 4 3 3 . 4 4 9 1 4 5 4 6 . 11 3 . . 5 7 5 6 12 5 Tactical Retreats 57 | . 1 . 2 . 7 . 6 8 . 7 1 . . . 1 2 . . 2 . 1 2 1 1 1 . 3 2 . . 2 2 2 2 1 . Traps | -11 -10 -10 -9 -9 -9 -8 -8 -7 -7 -7 -7 -7 -7 -6 -6 -6 -6 -6 -5 -5 -5 -5 -5 -4 -4 -4 -4 -4 -4 -4 -3 -3 -3 -2 -2 -1 ------- Run | Scr Mat Min Mat Min Exi Min Mat Fac Was Fac Low Low Zio Pro Fac Low Low Dat Pro Fac Upp Upp War Pro Fac Was Fac Upp Upp Zhi Pro Res Tes Res Qua Acc Traps Triggered 11 | . . . 1 . . . 1 2 . 1 . . . . 3 . . . . 1 . . . . 1 . 1 . . . . . . . . . Indirectly . | . . . . . . . . . . . . . . . . . . . . . . . . . . . . . . . . . . . . . Trap Hack Attempts . | . . . . . . . . . . . . . . . . . . . . . . . . . . . . . . . . . . . . . Triggered . | . . . . . . . . . . . . . . . . . . . . . . . . . . . . . . . . . . . . . Disarmed . | . . . . . . . . . . . . . . . . . . . . . . . . . . . . . . . . . . . . . Reprogrammed . | . . . . . . . . . . . . . . . . . . . . . . . . . . . . . . . . . . . . . Reused . | . . . . . . . . . . . . . . . . . . . . . . . . . . . . . . . . . . . . . Traps Extracted . | . . . . . . . . . . . . . . . . . . . . . . . . . . . . . . . . . . . . . Installed . | . . . . . . . . . . . . . . . . . . . . . . . . . . . . . . . . . . . . . Triggered 4 | . . . . . . . . . . . . . . . . . . . . . . . 3 . . . . . . . 1 . . . . . Exploded 3 | . . . . . 3 . . . . . . . . . . . . . . . . . . . . . . . . . . . . . . . Machines | -11 -10 -10 -9 -9 -9 -8 -8 -7 -7 -7 -7 -7 -7 -6 -6 -6 -6 -6 -5 -5 -5 -5 -5 -4 -4 -4 -4 -4 -4 -4 -3 -3 -3 -2 -2 -1 ---------- Run | Scr Mat Min Mat Min Exi Min Mat Fac Was Fac Low Low Zio Pro Fac Low Low Dat Pro Fac Upp Upp War Pro Fac Was Fac Upp Upp Zhi Pro Res Tes Res Qua Acc Machines Disabled 52 | . . . 4 . 11 1 10 1 . . . . . . . . . . . . . . . . 7 . 3 . . . . . 4 1 6 4 Max in Single Turn 5 | . . . 3 . 2 1 2 1 . . . . . . . . . . . . . . . . 5 . 2 . . . . . 1 1 2 4 Garrison Access 10 | . . . . . . . 1 1 . 2 . . . . 3 . . . . . . . . . 1 . 1 . . . . . . . 1 . Machines Sabotaged . | . . . . . . . . . . . . . . . . . . . . . . . . . . . . . . . . . . . . . Garrisons Compromised . | . . . . . . . . . . . . . . . . . . . . . . . . . . . . . . . . . . . . . Overloaded Fab Kills . | . . . . . . . . . . . . . . . . . . . . . . . . . . . . . . . . . . . . . Fab Network Shutdowns 3 | . . . . . . . . . . 1 . . . . . . . . . . . . . . 1 . . . . . . . 1 . . . Hacking | -11 -10 -10 -9 -9 -9 -8 -8 -7 -7 -7 -7 -7 -7 -6 -6 -6 -6 -6 -5 -5 -5 -5 -5 -4 -4 -4 -4 -4 -4 -4 -3 -3 -3 -2 -2 -1 --------- Run | Scr Mat Min Mat Min Exi Min Mat Fac Was Fac Low Low Zio Pro Fac Low Low Dat Pro Fac Upp Upp War Pro Fac Was Fac Upp Upp Zhi Pro Res Tes Res Qua Acc Machines Accessed 69 | . 4 1 1 . 2 . 9 11 . 12 . 1 . . 4 . . 4 . . 1 1 2 . 3 . 1 . . 5 . 3 2 1 1 . Terminals 26 | . 4 1 . . . . 7 7 . 7 . . . . . . . . . . . . . . . . . . . . . . . . . . Fabricators 8 | . . . . . . . . 2 . 2 . . . . . . . . . . . . . . 2 . . . . . . 1 1 . . . Repair Stations 4 | . . . . . . . . . . 1 . . . . 1 . . . . . . . . . . . . . . . . 1 1 . . . Recycling Units . | . . . . . . . . . . . . . . . . . . . . . . . . . . . . . . . . . . . . . Scanalyzers 5 | . . . 1 . . . 1 1 . . . . . . . . . . . . . . . . . . . . . . . 1 . 1 . . Garrison Access 10 | . . . . . . . 1 1 . 2 . . . . 3 . . . . . . . . . 1 . 1 . . . . . . . 1 . Total Hacks 261 | . 10 4 2 . 2 . 32 44 . 67 . 1 . . 5 . . 29 . . 1 1 6 . 12 . 1 . . 13 . 15 12 2 2 . Successful 196 | . 5 2 2 . 2 . 23 29 . 39 . 1 . . 5 . . 29 . . 1 1 6 . 10 . 1 . . 13 . 12 12 2 1 . Failed 65 | . 5 2 . . . . 9 15 . 28 . . . . . . . . . . . . . . 2 . . . . . . 3 . . 1 . Catastrophic 5 | . . . . . . . . 2 . 3 . . . . . . . . . . . . . . . . . . . . . . . . . . Database Lockouts . | . . . . . . . . . . . . . . . . . . . . . . . . . . . . . . . . . . . . . Manual 231 | . 2 4 . . 1 . 15 25 . 33 . . . . 32 . . . . 12 . . 1 . 18 . 20 . . . . 18 18 11 21 . Terminals 122 | . 10 4 . . . . 25 33 . 50 . . . . . . . . . . . . . . . . . . . . . . . . . . Fabricators 36 | . . . . . . . . 6 . 10 . . . . . . . . . . . . . . 11 . . . . . . 3 6 . . . Repair Stations 16 | . . . . . . . . . . 2 . . . . 2 . . . . . . . . . . . . . . . . 6 6 . . . Recycling Units . | . . . . . . . . . . . . . . . . . . . . . . . . . . . . . . . . . . . . . Scanalyzers 18 | . . . 2 . . . 5 3 . . . . . . . . . . . . . . . . . . . . . . . 6 . 2 . . Garrison Access 16 | . . . . . . . 2 2 . 5 . . . . 3 . . . . . . . . . 1 . 1 . . . . . . . 2 . Terminal Hacks 97 | . 4 2 . . 2 . 11 12 . 15 . 1 . . . . . 29 . . 1 1 6 . . . . . . 13 . . . . . . Record 23 | . . . . . 1 . . . . . . . . . . . . 11 . . . . 5 . . . . . . 6 . . . . . . Part Schematic 16 | . . . . . . . . 1 . 3 . . . . . . . 9 . . . . . . . . . . . 3 . . . . . . Robot Schematic 6 | . . . . . . . . . . . . . . . . . . 6 . . . . . . . . . . . . . . . . . . Robot Analysis 2 | . 1 1 . . . . . . . . . . . . . . . . . . . . . . . . . . . . . . . . . . Prototype ID Bank 15 | . . 1 . . . . 3 2 . 2 . . . . . . . 3 . . . . . . . . . . . 4 . . . . . . Open Door 4 | . . . . . . . . . . . . 1 . . . . . . . . 1 1 1 . . . . . . . . . . . . . Branch Access Points 2 | . . . . . . . 1 . . 1 . . . . . . . . . . . . . . . . . . . . . . . . . . Machine Index 1 | . . . . . . . . . . 1 . . . . . . . . . . . . . . . . . . . . . . . . . . Terminal Index 3 | . . . . . . . 1 1 . 1 . . . . . . . . . . . . . . . . . . . . . . . . . . Fabricator Index 2 | . . . . . . . . 1 . 1 . . . . . . . . . . . . . . . . . . . . . . . . . . Garrison Index 1 | . . . . . . . . . . 1 . . . . . . . . . . . . . . . . . . . . . . . . . . Unreport Threat 6 | . . . . . . . 3 2 . 1 . . . . . . . . . . . . . . . . . . . . . . . . . . Locate Traps 9 | . 3 . . . . . 1 3 . 2 . . . . . . . . . . . . . . . . . . . . . . . . . . Recall Investigation 1 | . . . . . . . . 1 . . . . . . . . . . . . . . . . . . . . . . . . . . . . Recall Extermination 1 | . . . . . . . . . . 1 . . . . . . . . . . . . . . . . . . . . . . . . . . Zone Layout 4 | . . . . . . . 2 1 . 1 . . . . . . . . . . . . . . . . . . . . . . . . . . EX-Prototype ID Bank 1 | . . . . . 1 . . . . . . . . . . . . . . . . . . . . . . . . . . . . . . . Fabricator Hacks 20 | . . . . . . . . 3 . 4 . . . . . . . . . . . . . . 5 . . . . . . 2 6 . . . Load Schematic 11 | . . . . . . . . 2 . 2 . . . . . . . . . . . . . . 3 . . . . . . 1 3 . . . Build 9 | . . . . . . . . 1 . 2 . . . . . . . . . . . . . . 2 . . . . . . 1 3 . . . Repair Station Hacks 16 | . . . . . . . . . . 2 . . . . 2 . . . . . . . . . . . . . . . . 6 6 . . . Scan Component 8 | . . . . . . . . . . 1 . . . . 1 . . . . . . . . . . . . . . . . 3 3 . . . Repair 8 | . . . . . . . . . . 1 . . . . 1 . . . . . . . . . . . . . . . . 3 3 . . . Recycling Unit Hacks . | . . . . . . . . . . . . . . . . . . . . . . . . . . . . . . . . . . . . . Scanalyzer 13 | . . . 2 . . . 4 1 . . . . . . . . . . . . . . . . . . . . . . . 4 . 2 . . Insert Component 7 | . . . 1 . . . 2 1 . . . . . . . . . . . . . . . . . . . . . . . 2 . 1 . . Analyze 6 | . . . 1 . . . 2 . . . . . . . . . . . . . . . . . . . . . . . . 2 . 1 . . Garrison Access Hacks 9 | . . . . . . . . 1 . 2 . . . . 3 . . . . . . . . . 1 . 1 . . . . . . . 1 . Seal Access 9 | . . . . . . . . 1 . 2 . . . . 3 . . . . . . . . . 1 . 1 . . . . . . . 1 . Unauthorized Hacks 41 | . 1 . . . . . 8 12 . 16 . . . . . . . . . . . . . . 4 . . . . . . . . . . . Terminals 30 | . 1 . . . . . 7 10 . 12 . . . . . . . . . . . . . . . . . . . . . . . . . . Track 6 | . . . . . . . 1 3 . 2 . . . . . . . . . . . . . . . . . . . . . . . . . . Assimilate 1 | . . . . . . . 1 . . . . . . . . . . . . . . . . . . . . . . . . . . . . . Botnet 14 | . . . . . . . 3 6 . 5 . . . . . . . . . . . . . . . . . . . . . . . . . . Disrupt 7 | . 1 . . . . . 1 1 . 4 . . . . . . . . . . . . . . . . . . . . . . . . . . Operators 2 | . . . . . . . 1 . . 1 . . . . . . . . . . . . . . . . . . . . . . . . . . Fabricators 10 | . . . . . . . . 2 . 4 . . . . . . . . . . . . . . 4 . . . . . . . . . . . Prioritize 4 | . . . . . . . . . . 2 . . . . . . . . . . . . . . 2 . . . . . . . . . . . Siphon 6 | . . . . . . . . 2 . 2 . . . . . . . . . . . . . . 2 . . . . . . . . . . . Repair Stations . | . . . . . . . . . . . . . . . . . . . . . . . . . . . . . . . . . . . . . Recycling Units . | . . . . . . . . . . . . . . . . . . . . . . . . . . . . . . . . . . . . . Scanalyzers . | . . . . . . . . . . . . . . . . . . . . . . . . . . . . . . . . . . . . . Garrison Access 1 | . . . . . . . 1 . . . . . . . . . . . . . . . . . . . . . . . . . . . . . Jam 1 | . . . . . . . 1 . . . . . . . . . . . . . . . . . . . . . . . . . . . . . Data Cores Recovered . | . . . . . . . . . . . . . . . . . . . . . . . . . . . . . . . . . . . . . Used . | . . . . . . . . . . . . . . . . . . . . . . . . . . . . . . . . . . . . . Hacking Detections 40 | . 4 1 1 . . . 9 9 . 10 . . . . . . . . . . . . . . 1 . . . . . . 2 2 1 . . Full Trace Events 1 | . . . . . . . . 1 . . . . . . . . . . . . . . . . . . . . . . . . . . . . Feedback Events . | . . . . . . . . . . . . . . . . . . . . . . . . . . . . . . . . . . . . . Feedback Blocked . | . . . . . . . . . . . . . . . . . . . . . . . . . . . . . . . . . . . . . Robot Schematics Acquired 6 | . . . . . . . . . . . . . . . . . . 6 . . . . . . . . . . . . . . . . . . Robots Built . | . . . . . . . . . . . . . . . . . . . . . . . . . . . . . . . . . . . . . Matter . | . . . . . . . . . . . . . . . . . . . . . . . . . . . . . . . . . . . . . Time . | . . . . . . . . . . . . . . . . . . . . . . . . . . . . . . . . . . . . . Total Robot Build Rating . | . . . . . . . . . . . . . . . . . . . . . . . . . . . . . . . . . . . . . Part Schematics Acquired 73 | . . . 1 . . . 2 1 . 3 . . . . . . . 9 . 12 . . . . 12 . . . . 3 . 2 27 1 . . Parts Built 9 | . . . . . . . . 1 . 2 . . . . . . . . . . . . . . 2 . . . . . . 1 3 . . . Matter 2322 | . . . . . . . . 213 . 328 . . . . . . . . . . . . . . 476 . . . . . . 285 1020 . . . Time 686 | . . . . . . . . 152 . 87 . . . . . . . . . . . . . . 126 . . . . . . 50 271 . . . Total Part Build Rating 48 | . . . . . . . . 5 . 6 . . . . . . . . . . . . . . 12 . . . . . . 5 20 . . . Parts Repaired 8 | . . . . . . . . . . 1 . . . . 1 . . . . . . . . . . . . . . . . 3 3 . . . Time 499 | . . . . . . . . . . 40 . . . . 38 . . . . . . . . . . . . . . . . 134 287 . . . Parts Recycled . | . . . . . . . . . . . . . . . . . . . . . . . . . . . . . . . . . . . . . Recycled Matter . | . . . . . . . . . . . . . . . . . . . . . . . . . . . . . . . . . . . . . Retrieved Matter . | . . . . . . . . . . . . . . . . . . . . . . . . . . . . . . . . . . . . . Retrieved Components . | . . . . . . . . . . . . . . . . . . . . . . . . . . . . . . . . . . . . . Parts Scanalyzed 7 | . . . 1 . . . 2 1 . . . . . . . . . . . . . . . . . . . . . . . 2 . 1 . . Part Schematics Acquired 6 | . . . 1 . . . 2 . . . . . . . . . . . . . . . . . . . . . . . . 2 . 1 . . Parts Damaged 1 | . . . . . . . 1 . . . . . . . . . . . . . . . . . . . . . . . . . . . . . Bothacking | -11 -10 -10 -9 -9 -9 -8 -8 -7 -7 -7 -7 -7 -7 -6 -6 -6 -6 -6 -5 -5 -5 -5 -5 -4 -4 -4 -4 -4 -4 -4 -3 -3 -3 -2 -2 -1 ------------ Run | Scr Mat Min Mat Min Exi Min Mat Fac Was Fac Low Low Zio Pro Fac Low Low Dat Pro Fac Upp Upp War Pro Fac Was Fac Upp Upp Zhi Pro Res Tes Res Qua Acc Used RIF Installer . | . . . . . . . . . . . . . . . . . . . . . . . . . . . . . . . . . . . . . Robots Hacked . | . . . . . . . . . . . . . . . . . . . . . . . . . . . . . . . . . . . . . Non-combat . | . . . . . . . . . . . . . . . . . . . . . . . . . . . . . . . . . . . . . Combat . | . . . . . . . . . . . . . . . . . . . . . . . . . . . . . . . . . . . . . Robot Hacks Applied . | . . . . . . . . . . . . . . . . . . . . . . . . . . . . . . . . . . . . . Relay Couplers Released . | . . . . . . . . . . . . . . . . . . . . . . . . . . . . . . . . . . . . . Robots Rewired . | . . . . . . . . . . . . . . . . . . . . . . . . . . . . . . . . . . . . . Allies Hacked . | . . . . . . . . . . . . . . . . . . . . . . . . . . . . . . . . . . . . . Hacks Repelled . | . . . . . . . . . . . . . . . . . . . . . . . . . . . . . . . . . . . . . Allies | -11 -10 -10 -9 -9 -9 -8 -8 -7 -7 -7 -7 -7 -7 -6 -6 -6 -6 -6 -5 -5 -5 -5 -5 -4 -4 -4 -4 -4 -4 -4 -3 -3 -3 -2 -2 -1 -------- Run | Scr Mat Min Mat Min Exi Min Mat Fac Was Fac Low Low Zio Pro Fac Low Low Dat Pro Fac Upp Upp War Pro Fac Was Fac Upp Upp Zhi Pro Res Tes Res Qua Acc Total Allies 49 | . . . . 3 . . 1 . 18 . . . 4 . 1 . . . . . . . . . 3 . 6 . . . . 6 . 7 . . Largest Group 16 | . . . . 3 1 . 1 1 16 4 . . 4 4 2 1 . . . . . . . . 3 . 4 . . . . 3 . 6 . . Highest-Rated Group 418 | . . . . 40 16 . 26 26 418 136 . . 156 156 81 10 . . . . . . . . 210 . 206 . . . . 288 . 234 . . Highest-Rated Ally 103 | . . . . 16 16 . 26 26 35 35 . . 41 41 41 10 . . . . . . . . 70 . 103 . . . . 103 . 39 . . Zionite Dispatches 9 | . . . . . . . . . . . . . . . 1 . . . . . . . . . 1 . 2 . . . . 3 . 2 . . Heavy 2 | . . . . . . . . . . . . . . . . . . . . . . . . . . . 1 . . . . 1 . . . . Light 1 | . . . . . . . . . . . . . . . . . . . . . . . . . . . . . . . . 1 . . . . Recon 1 | . . . . . . . . . . . . . . . 1 . . . . . . . . . . . . . . . . . . . . . Fire 3 | . . . . . . . . . . . . . . . . . . . . . . . . . . . 1 . . . . . . 2 . . Hacker 1 | . . . . . . . . . . . . . . . . . . . . . . . . . 1 . . . . . . . . . . . Infowar Resupply 1 | . . . . . . . . . . . . . . . . . . . . . . . . . . . . . . . . 1 . . . . Total Orders 31 | . . . . 1 1 . . . . . . . . . 22 . 1 . . . . . . . 2 . . . . . . 2 2 . . . STAY 3 | . . . . 1 1 . . . . . . . . . 1 . . . . . . . . . . . . . . . . . . . . . ROAM 6 | . . . . . . . . . . . . . . . 5 . . . . . . . . . 1 . . . . . . . . . . . FOLLOW 1 | . . . . . . . . . . . . . . . . . . . . . . . . . 1 . . . . . . . . . . . DROP 1 | . . . . . . . . . . . . . . . . . . . . . . . . . . . . . . . . 1 . . . . EXPLORE 7 | . . . . . . . . . . . . . . . 6 . 1 . . . . . . . . . . . . . . . . . . . RETURN 13 | . . . . . . . . . . . . . . . 10 . . . . . . . . . . . . . . . . 1 2 . . . Ally Attacks 202 | . . . . . . . . . 113 6 . . . 11 10 . . . . . . . . . 21 . 20 . . . . 7 . 14 . . Total Damage 7924 | . . . . . . . . . 5039 177 . . . 457 298 . . . . . . . . . 279 . 970 . . . . 442 . 262 . . Kills 36 | . . . . . . . . . 16 . . . . 4 3 . . . . . . . . . 4 . 5 . . . . 2 . 2 . . Allies Corrupted 1 | . . . . . . . . . . . . . . . . . . . . . . . . . . . . . . . . . . 1 . . Allies Melted . | . . . . . . . . . . . . . . . . . . . . . . . . . . . . . . . . . . . . . Intel | -11 -10 -10 -9 -9 -9 -8 -8 -7 -7 -7 -7 -7 -7 -6 -6 -6 -6 -6 -5 -5 -5 -5 -5 -4 -4 -4 -4 -4 -4 -4 -3 -3 -3 -2 -2 -1 ------- Run | Scr Mat Min Mat Min Exi Min Mat Fac Was Fac Low Low Zio Pro Fac Low Low Dat Pro Fac Upp Upp War Pro Fac Was Fac Upp Upp Zhi Pro Res Tes Res Qua Acc Robot Analysis Total 117 | . 1 1 . . . . . . . . . . . . . . . 115 . . . . . . . . . . . . . . . . . . Derelict Logs Recovered 22 | . . 2 . 1 . . . . . . 2 2 2 1 . 1 . . 3 . 2 1 . 2 . . . 2 1 . . . . . . . Drone Launches 17 | . . . . . . . . . . . . . . . 12 . 1 . . . . . . . 1 . . . . . . 1 2 . . . Drone Recoveries 17 | . . . . . . . . . . . . . . . 12 . 1 . . . . . . . 1 . . . . . . 1 2 . . . Decoded 0b10 Intel 6 | . . . . . . . . . . . . . . . . . . . . . . . . . . . . . . . . 1 5 . . . Patrols 5 | . . . . . . . . . . . . . . . . . . . . . . . . . . . . . . . . . 5 . . . Guards 1 | . . . . . . . . . . . . . . . . . . . . . . . . . . . . . . . . 1 . . . . Zionite Intel Received 28 | . . . . . . . . . . . . . . . 7 . . . . 2 . . . . 2 . 3 . . . . 2 5 1 6 . Main Access 1 | . . . . . . . . . . . . . . . 1 . . . . . . . . . . . . . . . . . . . . . Branch Access 2 | . . . . . . . . . . . . . . . . . . . . 1 . . . . . . 1 . . . . . . . . . Emergency Access 5 | . . . . . . . . . . . . . . . 1 . . . . . . . . . . . 1 . . . . 1 1 . 1 . Guard Positions 2 | . . . . . . . . . . . . . . . 1 . . . . . . . . . . . . . . . . . . . 1 . Component Stockpiles 2 | . . . . . . . . . . . . . . . . . . . . . . . . . 1 . . . . . . . 1 . . . Prototype Stockpiles 1 | . . . . . . . . . . . . . . . . . . . . . . . . . . . . . . . . . . . 1 . Component Schematics 2 | . . . . . . . . . . . . . . . . . . . . . . . . . 1 . . . . . . . 1 . . . Prototype Schematics 2 | . . . . . . . . . . . . . . . . . . . . 1 . . . . . . . . . . . . 1 . . . Unaware Analyses 5 | . . . . . . . . . . . . . . . 2 . . . . . . . . . . . 1 . . . . . 1 . 1 . Trap Installations 2 | . . . . . . . . . . . . . . . . . . . . . . . . . . . . . . . . 1 . 1 . . Active Terminals 1 | . . . . . . . . . . . . . . . 1 . . . . . . . . . . . . . . . . . . . . . Active Garrisons 2 | . . . . . . . . . . . . . . . 1 . . . . . . . . . . . . . . . . . . . 1 . Depthwide Sectors/0 1 | . . . . . . . . . . . . . . . . . . . . . . . . . . . . . . . . . . . 1 . Exploration | -11 -10 -10 -9 -9 -9 -8 -8 -7 -7 -7 -7 -7 -7 -6 -6 -6 -6 -6 -5 -5 -5 -5 -5 -4 -4 -4 -4 -4 -4 -4 -3 -3 -3 -2 -2 -1 ------------- Run | Scr Mat Min Mat Min Exi Min Mat Fac Was Fac Low Low Zio Pro Fac Low Low Dat Pro Fac Upp Upp War Pro Fac Was Fac Upp Upp Zhi Pro Res Tes Res Qua Acc Turns Passed 20504 | 108 470 578 321 422 2237 1024 2193 712 109 1532 834 166 681 539 1081 254 143 69 387 217 176 811 226 282 459 81 260 232 287 63 164 411 1784 332 780 79 Spaces Moved 21708 | 61 322 512 275 365 1243 577 1098 1474 155 1220 864 518 1547 678 1192 592 365 107 713 413 346 968 601 770 508 221 589 559 481 160 409 477 658 189 347 134 Core 645 | 25 . . . . . . . . 1 441 . . . . . . . . . 1 . . . . . . . . . . . . . . 43 134 Treads 1889 | . 46 46 . . 316 . 684 . . . . . . . . . . . . . . . . . . . . . . . . . 304 189 304 . Legs 1304 | . . . . . 417 577 310 . . . . . . . . . . . . . . . . . . . . . . . . . . . . . Wheels 1928 | 36 276 466 275 365 510 . . . . . . . . . . . . . . . . . . . . . . . . . . . . . . . Hover 474 | . . . . . . . . . . 474 . . . . . . . . . . . . . . . . . . . . . . . . . . Flight 15468 | . . . . . . . 104 1474 154 305 864 518 1547 678 1192 592 365 107 713 412 346 968 601 770 508 221 589 559 481 160 409 477 354 . . . Fastest Speed 29 | 50 80 100 90 110 100 160 37 37 37 32 32 32 32 32 32 32 32 32 32 32 35 35 34 32 32 30 30 30 30 29 29 29 29 152 50 50 Average Speed 60 | 75 99 107 98 110 148 160 155 37 40 62 32 32 32 32 33 32 32 32 32 32 35 35 34 33 32 31 30 30 30 30 29 29 89 159 139 50 Slowest Speed 1000 | 100 160 180 110 110 240 160 1000 37 250 250 102 32 32 32 102 32 32 32 32 50 35 35 35 34 109 32 100 30 30 97 29 29 160 160 152 50 Overloaded Moves . | . . . . . . . . . . . . . . . . . . . . . . . . . . . . . . . . . . . . . Propulsion Burnouts . | . . . . . . . . . . . . . . . . . . . . . . . . . . . . . . . . . . . . . Robots Hopped 44 | . . . . . . . . 18 . . . . . . . . . 1 1 1 . . . . 12 . 5 3 . . . 1 2 . . . Cave-ins Triggered . | . . . . . . . . . . . . . . . . . . . . . . . . . . . . . . . . . . . . . Exploration Rate (%) 56 | 4 53 95 41 47 89 91 92 46 85 27 67 80 90 65 28 72 59 77 74 10 54 80 86 78 13 88 19 76 66 60 65 19 49 9 40 7 Regions Visited 36 Branch Regions 22 Pre-discovered Areas 40 | . . 1 . 1 1 . . . . . 1 1 . 1 . . . 27 2 . . . . . . . . . . 3 . . . . 2 . Known Exits Taken 26 | . . . 1 . . . 1 . . 1 1 1 1 1 1 1 1 1 1 1 1 1 1 1 . . 1 1 1 1 1 1 1 1 1 . Unknown Exits Taken 6 | 1 1 1 . 1 1 1 . . . . . . . . . . . . . . . . . . . . . . . . . . . . . . Scrap Searched 39 | . . 1 . . . 2 . . . . 2 3 2 . . 4 7 . 1 . 3 3 . 5 . . . 3 3 . . . . . . . Spaces Dug 120 | . . . . . . . . 13 1 7 1 . . . 14 1 . 1 2 8 . 4 . 1 13 . 7 . . . 3 10 16 8 10 . Terrain Destroyed 1117 | . . . 13 9 26 40 148 29 1 7 13 . . . 35 55 15 1 20 8 . 4 . 1 52 . 89 10 . . 3 14 28 12 51 433 Melee 82 | . . . . . . . . 13 1 7 1 . . . 14 1 . 1 2 8 . 4 . 1 6 . 7 . . . 3 10 3 . . . Projectile 84 | . . . . . . 2 6 . . . . . . . . . . . . . . . . . 17 . 1 . . . . 4 25 12 17 . AOE 951 | . . . 13 9 26 38 142 16 . . 12 . . . 21 54 15 . 18 . . . . . 29 . 81 10 . . . . . . 34 433 Terrain Rammed . | . . . . . . . . . . . . . . . . . . . . . . . . . . . . . . . . . . . . . Walls Destroyed . | . . . . . . . . . . . . . . . . . . . . . . . . . . . . . . . . . . . . . Machines Disabled . | . . . . . . . . . . . . . . . . . . . . . . . . . . . . . . . . . . . . . Actions | -11 -10 -10 -9 -9 -9 -8 -8 -7 -7 -7 -7 -7 -7 -6 -6 -6 -6 -6 -5 -5 -5 -5 -5 -4 -4 -4 -4 -4 -4 -4 -3 -3 -3 -2 -2 -1 --------- Run | Scr Mat Min Mat Min Exi Min Mat Fac Was Fac Low Low Zio Pro Fac Low Low Dat Pro Fac Upp Upp War Pro Fac Was Fac Upp Upp Zhi Pro Res Tes Res Qua Acc Total 28012 | 95 423 525 314 380 1500 628 1403 1583 201 1947 1414 517 1725 997 1825 648 389 127 861 479 399 1429 619 788 746 232 639 615 622 172 449 721 1685 206 564 145 Wait 4957 | . 47 . 5 10 78 11 42 76 37 677 542 . 167 319 564 50 24 11 135 53 50 453 10 14 185 8 31 57 139 . 38 204 821 . 97 2 Move 21589 | 60 321 511 274 364 1242 576 1097 1440 154 1219 863 517 1546 677 1191 591 364 104 710 410 345 967 600 769 485 220 578 552 480 159 408 474 653 188 346 134 Hop 41 | . . . . . . . . 16 . . . . . . . . . 1 1 1 . . . . 11 . 5 3 . . . 1 2 . . . Pick Up 138 | 12 12 3 9 2 26 2 33 . 1 1 . . 1 . 1 . . . 2 . 1 1 2 . 2 1 . . . 1 . 4 8 1 12 . Fast Attach 107 | . . . 1 . 7 . 6 6 3 12 3 . 2 . 6 . . 2 1 1 1 2 2 3 10 1 1 . 2 7 . 6 19 1 2 . Attach 74 | 6 1 . 2 . 11 1 24 . 1 3 1 . . . 2 . . . 2 . . . 1 . 4 . . . . . . 3 3 1 7 1 Detach 15 | . . . . . 2 . 1 . . 2 1 . . . 2 . . . . . . . . . 3 . . . . . . 1 3 . . . Swap 132 | . 9 4 4 1 11 8 34 3 . 1 . . 2 . 3 3 . 1 3 1 1 . . . 4 1 6 . . 1 . 4 16 . 11 . Drop 185 | . 4 . 7 . 30 2 42 3 4 8 2 . 3 . 3 . . 2 2 2 1 1 4 1 10 1 1 . 1 4 . 6 24 1 16 . Fire 500 | 17 29 7 12 3 93 28 108 1 . . 1 . . . 1 3 1 . 3 . . . . . 18 . 8 2 . . . 5 83 14 62 1 Melee 213 | . . . . . . . 13 20 1 22 1 . 4 1 26 1 . 6 2 11 . 5 . 1 14 . 9 1 . . 3 13 53 . 6 . Ram 12 | . . . . . . . . . . 2 . . . . . . . . . . . . . . . . . . . . . . . . 3 7 Kick . | . . . . . . . . . . . . . . . . . . . . . . . . . . . . . . . . . . . . . Crush 5 | . . . . . . . 3 . . . . . . . . . . . . . . . . . . . . . . . . . . . 2 . Escape Stasis 44 | . . . . . . . . 18 . . . . . . 26 . . . . . . . . . . . . . . . . . . . . . Rewire . | . . . . . . . . . . . . . . . . . . . . . . . . . . . . . . . . . . . . . Trap . | . . . . . . . . . . . . . . . . . . . . . . . . . . . . . . . . . . . . . Miscellaneous . | . . . . . . . . . . . . . . . . . . . . . . . . . . . . . . . . . . . . . Route ------- -11/Scrapyard -10/Materials (discovered 3 exits: *Mat / *Min x2) -10/Mines (discovered 2 exits: *Mat x2) -9/Materials -9/Mines (discovered 3 exits: *Mat x2 / *Exi) -9/Exiles -8/Mines (discovered 2 exits: *Mat x2) -8/Materials (discovered 3 exits: *Fac x3) -7/Factory (discovered 2 exits: *Fac x2) -7/Waste -7/Factory (discovered 5 exits: *Fac / Sto x2 / *Low x2) -7/Lower Caves -7/Lower Caves (discovered 2 exits: *Fac / *Zio) -7/Zion -6/Proximity Caves -6/Factory (discovered 6 exits: *Fac x4 / *Low / Ext) -6/Lower Caves -6/Lower Caves (discovered 2 exits: *Fac / *Dat) -6/Data Miner -5/Proximity Caves -5/Factory (discovered 3 exits: Fac / *Upp x2) -5/Upper Caves -5/Upper Caves -5/Warlord -4/Proximity Caves -4/Factory -4/Waste -4/Factory (discovered 4 exits: *Res / *Upp x2 / Arm) -4/Upper Caves -4/Upper Caves (discovered 2 exits: *Res / *Zhi) -4/Zhirov -3/Proximity Caves -3/Research (discovered 2 exits: Res / *Tes) -3/Testing -2/Research -2/Quarantine -1/Access History --------- Turn | Location | Event 9 | -11/Scrapyard | Discovered new exit (range 14) 109 | -11/Scrapyard | Entered Materials 309 | -10/Materials | Build established: Mutant 477 | -10/Materials | Discovered new exit (range 3) 489 | -10/Materials | Discovered new exit (range 16) 561 | -10/Materials | Discovered new exit (range 7) 579 | -10/Materials | Entered Mines 612 | -10/Mines | Received a Rocket Launcher from a helpful Derelict 679 | -10/Mines | Found a damaged Exp. Sensor Array with a note attached 681 | -10/Mines | Found Prototype Device 973 | -10/Mines | Discovered new exit (range 10) 1010 | -10/Mines | Learned location of Storage (-7) 1081 | -10/Mines | Learned 2 Materials zone layouts 1094 | -10/Mines | Discovered new exit (range 8) 1157 | -10/Mines | Entered Materials 1157 | -9/Materials | Evolved 2 slots: Utility x2 1158 | -9/Materials | Identified exit to Mines 1253 | -9/Materials | Identified Exp. Sensor Array 1478 | -9/Materials | Entered Mines 1479 | -9/Mines | Met a Derelict bent on vengeance 1625 | -9/Mines | Learned location of Zion (-7) 1627 | -9/Mines | Discovered new exit (range 6) 1748 | -9/Mines | Build established: Hauler-Mutant 1798 | -9/Mines | Deemed a non-threat by the Exiles lab entrance 1798 | -9/Mines | Discovered new exit (range 5) 1832 | -9/Mines | Discovered new exit (range 13) 1846 | -9/Mines | Assisted by bots powering up and referring to "LRC-V3" 1877 | -9/Mines | Assembled infested the area 1882 | -9/Mines | Assisted by a Guerilla fighting off Assembled 1900 | -9/Mines | Entered Exiles 1900 | -9/Exiles | Accompanied by 1 ally 1938 | -9/Exiles | Met 8R-AWN 1953 | -9/Exiles | Met EX-HEX 2017 | -9/Exiles | Met EX-DEC 2135 | -9/Exiles | Met EX-BIN 2148 | -9/Exiles | Aligned with FarCom system 2149 | -9/Exiles | Given EX-Vault access code 2174 | -9/Exiles | Opened EX-Vault 2199 | -9/Exiles | Warned to stay clear of 0b10 Research branches 2269 | -9/Exiles | Discovered new exit (range 10) 2578 | -9/Exiles | Attacked by the Exiles 2764 | -9/Exiles | Destroyed 8R-AWN 2783 | -9/Exiles | Lost 4 parts (1p2n1w) 2788 | -9/Exiles | Found Prototype Device 2789 | -9/Exiles | Identified AS-neutralizer No. 17b 2872 | -9/Exiles | Found Prototype Processor 2872 | -9/Exiles | Identified Exp. Targeting Computer 3136 | -9/Exiles | Build established: Mutant 3140 | -9/Exiles | Destroyed EX-HEX 3330 | -9/Exiles | Destroyed EX-DEC 3355 | -9/Exiles | Destroyed EX-BIN 3390 | -9/Exiles | Found Prototype Device 3390 | -9/Exiles | Identified System Purifier 3747 | -9/Exiles | Build established: Scavenger-Mutant 4137 | -9/Exiles | Entered Mines 4533 | -8/Mines | Core integrity fell below 50% 4832 | -8/Mines | Discovered new exit (range 5) 5130 | -8/Mines | Discovered new exit (range 15) 5161 | -8/Mines | Entered Materials 5161 | -8/Materials | Evolved 2 slots: Utility x2 5582 | -8/Materials | Lost 6 parts (1p1n1u3w) 5733 | -8/Materials | Discovered new exit (range 5) 5836 | -8/Materials | Build established: Mutant 5961 | -8/Materials | First assault squad dispatched 6169 | -8/Materials | Discovered new exit (range 3) 6282 | -8/Materials | Core integrity fell below 50% 6442 | -8/Materials | Lost 3 parts (1p1u1w) 6454 | -8/Materials | Destroyed 11 combat bots 6734 | -8/Materials | Discovered new exit (range 15) 7048 | -8/Materials | Identified exit to Factory 7354 | -8/Materials | Entered Factory 7354 | -7/Factory | Accompanied by 1 ally 7354 | -7/Factory | Evolved 2 slots: Utility x2 7684 | -7/Factory | Build established: Hacker-Scout 7705 | -7/Factory | Discovered new exit (range 16) 7908 | -7/Factory | Discovered new exit (range 16) 7943 | -7/Factory | Fabricated Exp. Sensor Array? 7994 | -7/Factory | Identified exit to Factory 8066 | -7/Factory | Manually triggered Chute Trap 8066 | -7/Factory | Sucked down chute 8066 | -7/Factory | Entered Waste 8070 | -7/Waste | Spotted C-40 Crusher 8073 | -7/Waste | Spotted C-40 Crusher 8074 | -7/Waste | Spotted C-40 Crusher 8081 | -7/Waste | EMP discharged 8085 | -7/Waste | Met Warlord forces unprepared to attack 8089 | -7/Waste | Allies destroyed C-40 Crusher 8091 | -7/Waste | Allies destroyed C-40 Crusher 8100 | -7/Waste | Spotted C-40 Crusher 8111 | -7/Waste | Allies destroyed C-40 Crusher 8118 | -7/Waste | Allies destroyed C-40 Crusher 8125 | -7/Waste | Spotted C-40 Crusher 8133 | -7/Waste | Spotted C-40 Crusher 8147 | -7/Waste | Allies destroyed C-40 Crusher 8151 | -7/Waste | Discovered new exit (range 12) 8155 | -7/Waste | Identified exit to Factory 8175 | -7/Waste | Entered Factory 8175 | -7/Factory | Accompanied by 4 allies 8233 | -7/Factory | P-60 Hacker assimilated allied 7T-T0N(m) 8421 | -7/Factory | Discovered new exit (range 11) 8426 | -7/Factory | Identified exit to Lower Caves 8581 | -7/Factory | Identified exit to Storage 8702 | -7/Factory | System corruption reached 10% 8736 | -7/Factory | Discovered exit to Factory (range 13) 8743 | -7/Factory | Fabricated Imp. VTOL Module? 8768 | -7/Factory | Fabricated Imp. VTOL Module? 8877 | -7/Factory | Local fabrication network quarantined 9011 | -7/Factory | Build established: Hacker-Mutant 9646 | -7/Factory | Repaired Exp. Sensor Array 9707 | -7/Factory | Entered Lower Caves 9779 | -7/Lower Caves | Spotted B-75 Beast 10002 | -7/Lower Caves | Build established: Hacker-Scout 10468 | -7/Lower Caves | Learned location of 1 exit from Factory 10481 | -7/Lower Caves | Encountered a Warlord checkpoint 10491 | -7/Lower Caves | Discovered new exit (range 3) 10492 | -7/Lower Caves | Identified exit to Lower Caves 10541 | -7/Lower Caves | Entered another Lower Caves area 10542 | -7/Lower Caves | Encountered a Warlord checkpoint 10556 | -7/Lower Caves | Discovered exit to Factory (range 12) 10659 | -7/Lower Caves | Learned Factory stockpile data 10676 | -7/Lower Caves | Discovered new exit (range 8) 10678 | -7/Lower Caves | Identified exit to Zion 10707 | -7/Lower Caves | Entered Zion 10740 | -7/Zion | Learned Factory stockpile data 10764 | -7/Zion | Acquired unknown access codes intercepted by a Zionite 10769 | -7/Zion | Build established: Hacker-Sprinter 10789 | -7/Zion | Given the Hacking Drone Bay 10820 | -7/Zion | Learned Factory garrison access intel 10842 | -7/Zion | Given A8's code to call for help 11134 | -7/Zion | Found Prototype Device 11135 | -7/Zion | Identified Hacking Drone Bay 11160 | -7/Zion | Imprinted 11162 | -7/Zion | Declared Zion's savior 11218 | -7/Zion | Discovered new exit (range 13) 11379 | -7/Zion | Identified exit to Proximity Caves 11388 | -7/Zion | Entered Proximity Caves 11388 | -6/Proximity Caves | Accompanied by 4 allies 11858 | -6/Proximity Caves | Discovered exit to Factory (range 3) 11927 | -6/Proximity Caves | Entered Factory 11927 | -6/Factory | Accompanied by 2 allies 11927 | -6/Factory | Evolved 2 slots: Utility x2 11928 | -6/Factory | Identified exit to Extension 11930 | -6/Factory | Loaded intel: 4 garrison access locations 12069 | -6/Factory | Discovered new exit (range 7) 12107 | -6/Factory | Identified exit to Factory 12386 | -6/Factory | Retrieved Zion intel report: Active Terminals 12387 | -6/Factory | Zion Recon squad teleported in 12438 | -6/Factory | Discovered exit to Factory (range 12) 12681 | -6/Factory | Repaired Imp. Propulsion Shielding 12695 | -6/Factory | Retrieved Zion intel report: Unaware Analyses 12768 | -6/Factory | Retrieved Zion intel report: Guard Positions 12795 | -6/Factory | Retrieved Zion intel report: Active Garrisons 12877 | -6/Factory | Retrieved Zion intel report: Emergency Access 12886 | -6/Factory | Retrieved Zion intel report: Unaware Analyses 12953 | -6/Factory | Retrieved Zion intel report: Main Access 12999 | -6/Factory | Discovered new exit (range 6) 13000 | -6/Factory | Identified exit to Lower Caves 13008 | -6/Factory | Entered Lower Caves 13008 | -6/Lower Caves | Accompanied by 1 ally 13016 | -6/Lower Caves | Encountered a Warlord checkpoint 13026 | -6/Lower Caves | Learned location of 1 exit from Factory 13143 | -6/Lower Caves | Spotted B-75 Beast 13197 | -6/Lower Caves | Discovered new exit (range 15) 13261 | -6/Lower Caves | Identified exit to Lower Caves 13262 | -6/Lower Caves | Attracted the attention of an 0b10 checkpoint 13262 | -6/Lower Caves | Entered another Lower Caves area 13278 | -6/Lower Caves | Discovered exit to Factory (range 3) 13360 | -6/Lower Caves | Spotted B-75 Beast 13403 | -6/Lower Caves | Discovered new exit (range 7) 13405 | -6/Lower Caves | Identified exit to Data Miner 13405 | -6/Lower Caves | Entered Data Miner 13405 | -6/Data Miner | Discovered new exit (range 6) 13412 | -6/Data Miner | Met Data Miner 13420 | -6/Data Miner | Learned location of Section 7 (-2) 13420 | -6/Data Miner | Acquired the access code to Warlord's prototype stash 13426 | -6/Data Miner | Received God Mode back door access code from Data Miner 13430 | -6/Data Miner | Destroyed Data Miner 13433 | -6/Data Miner | Interfaced with the Data Conduit 13434 | -6/Data Miner | Found Prototype Hackware 13434 | -6/Data Miner | Identified Deep Network Scanner 13436 | -6/Data Miner | Found Prototype Hackware 13436 | -6/Data Miner | Identified Ghost Barrier 13474 | -6/Data Miner | Identified exit to Proximity Caves 13474 | -6/Data Miner | Entered Proximity Caves 13565 | -5/Proximity Caves | Learned location of 1 exit from Factory 13714 | -5/Proximity Caves | Build established: Wizard-Sprinter 13741 | -5/Proximity Caves | Received a Behemoth hack from an annoying Tinkerer 13856 | -5/Proximity Caves | Discovered exit to Factory (range 11) 13861 | -5/Proximity Caves | Entered Factory 13861 | -5/Factory | Evolved 2 slots: Utility x2 13862 | -5/Factory | Identified exit to Factory 13862 | -5/Factory | Identified exit to Upper Caves 13864 | -5/Factory | Loaded intel: 304 machine locations 13966 | -5/Factory | Retrieved Zion intel report: Branch Access 13976 | -5/Factory | Retrieved Zion intel report: Prototype Schematics 14074 | -5/Factory | Intercept squad dispatched 14078 | -5/Factory | Spotted Tracker 14078 | -5/Factory | Entered Upper Caves 14151 | -5/Upper Caves | Learned location of 1 exit from Proximity Caves 14179 | -5/Upper Caves | Identified exit to Upper Caves 14184 | -5/Upper Caves | Encountered a Warlord checkpoint 14254 | -5/Upper Caves | Entered another Upper Caves area 14323 | -5/Upper Caves | Encountered a Warlord checkpoint 14368 | -5/Upper Caves | Build established: Wizard-Mutant 14387 | -5/Upper Caves | Spotted B-75 Beast 15054 | -5/Upper Caves | Discovered new exit (range 6) 15055 | -5/Upper Caves | Identified exit to Warlord 15065 | -5/Upper Caves | Entered Warlord 15076 | -5/Warlord | Discovered new exit (range 8) 15163 | -5/Warlord | Rebuked by Warlord 15166 | -5/Warlord | Opened Warlord's prototype stash 15170 | -5/Warlord | Found Exp. Focal Shield 15173 | -5/Warlord | Found Exp. Phase Shifter 15177 | -5/Warlord | Found Exp. Armor Integrity Analyzer 15188 | -5/Warlord | Warlord's base attacked by MAIN.C 15281 | -5/Warlord | Opened side exit 15290 | -5/Warlord | Identified exit to Proximity Caves 15291 | -5/Warlord | Entered Proximity Caves 15300 | -4/Proximity Caves | Learned location of 2 exits from Research 15452 | -4/Proximity Caves | Found Alien Artifact 15452 | -4/Proximity Caves | Identified Core Expander 15452 | -4/Proximity Caves | Installed Core Expander, added new Propulsion slot 15490 | -4/Proximity Caves | Learned Research security intel 15573 | -4/Proximity Caves | Entered Factory 15573 | -4/Factory | Evolved 2 slots: Utility x2 15574 | -4/Factory | Identified exit to Armory 15575 | -4/Factory | Loaded intel: 276 machine locations 15594 | -4/Factory | Zion Hacker squad teleported in 15818 | -4/Factory | Fabricated Plasma Sword (x1) 15844 | -4/Factory | Retrieved Zion intel report: Component Schematics 15903 | -4/Factory | Retrieved Zion intel report: Component Stockpiles 15975 | -4/Factory | Local fabrication network quarantined 15979 | -4/Factory | Build established: Wizard-Sprinter 15995 | -4/Factory | Fabricated Mni. Smartbomb Launcher? 16032 | -4/Factory | Manually triggered Chute Trap 16032 | -4/Factory | Sucked down chute 16032 | -4/Factory | Entered Waste 16032 | -4/Waste | The area was eerily silent 16096 | -4/Waste | Discovered new exit (range 12) 16113 | -4/Waste | Identified exit to Factory 16113 | -4/Waste | Entered Factory 16114 | -4/Factory | Loaded intel: 292 machine locations 16141 | -4/Factory | Retrieved Zion intel report: Branch Access 16141 | -4/Factory | Identified exit to Upper Caves 16142 | -4/Factory | Zion Fire squad teleported in 16241 | -4/Factory | Retrieved Zion intel report: Unaware Analyses 16242 | -4/Factory | Zion Heavy squad teleported in 16303 | -4/Factory | Discovered new exit (range 10) 16333 | -4/Factory | Retrieved Zion intel report: Emergency Access 16363 | -4/Factory | First assault squad dispatched 16373 | -4/Factory | Entered Upper Caves 16404 | -4/Upper Caves | Lost 3 parts (3u) 16512 | -4/Upper Caves | Learned 4 Research zone layouts 16554 | -4/Upper Caves | Encountered a Warlord checkpoint 16564 | -4/Upper Caves | Discovered new exit (range 16) 16605 | -4/Upper Caves | Identified exit to Upper Caves 16605 | -4/Upper Caves | Entered another Upper Caves area 16770 | -4/Upper Caves | Discovered new exit (range 13) 16773 | -4/Upper Caves | Encountered a Warlord checkpoint 16850 | -4/Upper Caves | Discovered new exit (range 12) 16854 | -4/Upper Caves | Identified exit to Zhirov 16860 | -4/Upper Caves | Learned Research emergency access door positions 16892 | -4/Upper Caves | Entered Zhirov 16892 | -4/Zhirov | Discovered new exit (range 3) 16898 | -4/Zhirov | Met Zhirov 16907 | -4/Zhirov | Zhirov requested help retrieving the SGEMP Prototype 16915 | -4/Zhirov | Found Alien Artifact 16915 | -4/Zhirov | Identified Integrated Dissipator 16915 | -4/Zhirov | Installed Integrated Dissipator, increased core heat dissipation (+20) 16955 | -4/Zhirov | Identified exit to Proximity Caves 16955 | -4/Zhirov | Entered Proximity Caves 17087 | -3/Proximity Caves | Discovered new exit (range 7) 17119 | -3/Proximity Caves | Identified exit to Research 17119 | -3/Proximity Caves | Entered Research 17119 | -3/Research | Evolved 2 slots: Power x1, Utility x1 17120 | -3/Research | Identified exit to Research 17120 | -3/Research | Identified exit to Testing 17124 | -3/Research | Loaded intel: 97 machine locations 17124 | -3/Research | Found Com. Tesla Bomb Launcher 17139 | -3/Research | Retrieved Zion intel report: Trap Installations 17212 | -3/Research | Repaired Electron Diverter 17255 | -3/Research | Repaired Gravity Neutralizing Apparatus 17296 | -3/Research | Repaired Exp. Sensor Array 17394 | -3/Research | Fabricated Exp. Signal Interpreter (x1) 17439 | -3/Research | Spotted B-86 Titan 17441 | -3/Research | Retrieved Zion intel report: Emergency Access 17442 | -3/Research | Zion Heavy squad teleported in 17468 | -3/Research | Zion Infowar Resupply teleported in 17516 | -3/Research | Zion Light squad teleported in 17530 | -3/Research | Entered Testing 17531 | -3/Testing | Loaded intel: 76 machine locations 17543 | -3/Testing | Found Prototype Energy Cannon 17543 | -3/Testing | Identified Null Cannon 17578 | -3/Testing | Found Prototype Energy Cannon 17578 | -3/Testing | Identified Imp. Potential Cannon 17610 | -3/Testing | Retrieved Zion intel report: Prototype Schematics 17611 | -3/Testing | Retrieved Zion intel report: Component Schematics 17615 | -3/Testing | Retrieved Zion intel report: Unaware Analyses 17621 | -3/Testing | Found Prototype Device 17621 | -3/Testing | Identified AEGIS Remote Shield 17874 | -3/Testing | Fabricated Enh. Armored Medium Treads? 18154 | -3/Testing | Fabricated Centrium Heavy Treads (x1) 18259 | -3/Testing | Fabricated Exp. Targeting Computer (x1) 18466 | -3/Testing | Build established: Wizard-Mutant 18563 | -3/Testing | System corruption reached 10% 18615 | -3/Testing | Retrieved Zion intel report: Emergency Access 18629 | -3/Testing | Local fabrication network quarantined 18631 | -3/Testing | Retrieved Zion intel report: Component Stockpiles 18651 | -3/Testing | Found Prototype Energy Cannon 18651 | -3/Testing | Identified Cld. Nova Cannon 18707 | -3/Testing | Discovered exit to Research (range 11) 18752 | -3/Testing | Found Prototype Protection 18752 | -3/Testing | Identified SHELL Armor 18874 | -3/Testing | Intercept squad dispatched 18885 | -3/Testing | Spotted Tracker 18893 | -3/Testing | Destroyed Tracker 18916 | -3/Testing | Spotted Combat Programmer 18929 | -3/Testing | Destroyed Combat Programmer 19000 | -3/Testing | Terminal network hard line cut 19061 | -3/Testing | Build established: Hacker-Mutant 19069 | -3/Testing | Repaired Exp. Utility Shielding 19180 | -3/Testing | Repaired Centrium Heavy Treads 19280 | -3/Testing | Repaired Enh. Armored Medium Treads 19314 | -3/Testing | Entered Research 19314 | -2/Research | Evolved 2 slots: Propulsion x1, Utility x1 19315 | -2/Research | Loaded intel: 94 machine locations 19387 | -2/Research | Spotted B-90 Cyclops 19427 | -2/Research | Retrieved Zion intel report: Trap Installations 19428 | -2/Research | Zion Fire squad teleported in 19461 | -2/Research | Zion Fire squad teleported in 19637 | -2/Research | Discovered new exit (range 5) 19643 | -2/Research | Identified exit to Quarantine 19646 | -2/Research | Entered Quarantine 19647 | -2/Quarantine | Loaded intel: 75 machine locations 19766 | -2/Quarantine | Retrieved Zion intel report: Emergency Access 19778 | -2/Quarantine | Retrieved Zion intel report: Prototype Stockpiles 19817 | -2/Quarantine | Retrieved Zion intel report: Depthwide Sectors/0 19953 | -2/Quarantine | Found Alien Impact Weapon 20023 | -2/Quarantine | Retrieved Zion intel report: Guard Positions 20079 | -2/Quarantine | Discovered new exit (range 9) 20100 | -2/Quarantine | Identified exit to Access 20135 | -2/Quarantine | Spotted Alpha 7 20140 | -2/Quarantine | Retrieved Zion intel report: Unaware Analyses 20145 | -2/Quarantine | Identified Core Stripper 20162 | -2/Quarantine | Destroyed Alpha 7 20267 | -2/Quarantine | Retrieved Zion intel report: Active Garrisons 20281 | -2/Quarantine | Found Alien Launcher 20310 | -2/Quarantine | Intercept squad dispatched 20314 | -2/Quarantine | Spotted Tracker 20319 | -2/Quarantine | Spotted Tracker 20325 | -2/Quarantine | Destroyed Tracker 20329 | -2/Quarantine | Spotted Combat Programmer 20329 | -2/Quarantine | Destroyed Tracker 20333 | -2/Quarantine | Spotted Combat Programmer 20359 | -2/Quarantine | Found Exp. Phase Shifter 20379 | -2/Quarantine | Destroyed Combat Programmer 20393 | -2/Quarantine | Destroyed Combat Programmer 20396 | -2/Quarantine | First assault squad dispatched 20396 | -2/Quarantine | Released all parts (13) 20408 | -2/Quarantine | System corruption reached 10% 20416 | -2/Quarantine | Core integrity fell below 50% 20424 | -2/Quarantine | Lost 7 parts (2p1n3u1w) 20426 | -2/Quarantine | Entered Access 20426 | -1/Access | Evolved 2 slots: Propulsion x2 20427 | -1/Access | Loaded intel: 95 machine locations 20456 | -1/Access | Identified Sigix Terminator 20457 | -1/Access | Fired Sigix Terminator 20458 | -1/Access | Core integrity fell below 50% 20458 | -1/Access | Core integrity fell below 20% 20505 | -1/Access | Destroyed by P-80 Master with Gamma Rifle Last Messages --------------- 20457_ Destroyed Unknown Wheel. 20457_ K-01 Serf destroyed. 20457_ Destroyed Hvy. Armor Plating. 20457_ Y-72 Warden destroyed. 20458_ The unstable cave ceiling collapses. 20463_ K-01 Serf collects debris. 20463_ U-05 Engineer lays Concrete. 20467_ K-01 Serf collects debris. 20467_ U-05 Engineer lays Concrete. 20469_ K-01 Serf collects debris. 20469_ U-05 Engineer lays Concrete. 20471_ K-01 Serf collects debris. 20471_ U-05 Engineer lays Concrete. 20472_ K-01 Serf collects debris. 20473_ U-05 Engineer lays Concrete. 20488_ Penetrated by Slug. 20495_ Hyperwave Decoder disabled. 20498_ Slug penetrates Hyperwave Decoder. 20500_ System corrupted: Energy discharge (-22). 20503_ Detecting system override signal. Map ----- +----------------------------------------------------+ | ???????????""?? | | ? ???????????Y"?? | | ? ???????????""?? | | ?? ???????????""?? | | ? ??????????????? | | ??# ### ########## #########???????????????? | | ??#???# #????????# #???????????????????????? | | ?##+###/#######??# #???????????????????????? | | ?# #??# #???????????????????????? | | ?# #??# #???????????????????????? | | ?# #### #???????????????????????? | | ?# + #???????????????????????? | | ?# #######+##+#?????????????????????""" | | ?# """ #???? ???????????????????????""F | | ?# """"" #?? ?????????????????????""? | | ?# """"" # ???????????????????""" | | ?# """"" # !! #?????????????????""" | | ?# """"" # !! #???????????????????? | | ?# # !! #???????????????????? | | ?# ################???????????????????? | | ?###########p######################??????????????? | | ????????# p ??????????????? | | ????????# ???????????????? | | ????????# ####### ""##???????????????????? | | ????????# ??????# ""#????????????????????? | | ?"?"????# ???????# @""#????????????????????? | | ?"?"????# ???????# T#????????????????????? | | ""G""???#????????# ""#????????????????????? | | ?????????????????# ""#????????????????????? | | ?????????????????# ""#????????????????????? | | ?????????????????""""""""""""????????????????????? | | ?????????????????????????????????????????????????? | | ?????????????????????????????????????????????????? | | ????????????????????""""""???????????????????????? | | ????????????????????"????"???????????????????????? | | ????????????????????"??"?"???????????????????????? | | ????????????????????"?""?"???????????????????????? | | ????????????????????"????"???????????????????????? | | ????????????????????""""""???????????????????????? | | ?????????????????????????????????????????????????? | | ??????????????????""""""""""?????????????????????? | | "?????????????????""""""""""?????????????????????? | | ??????????????????""""""""""?????????????""??????? | | ??????????????????""""""""""?????????????""??????? | | ?????????????????????????????????????????""??????? | | ??????????????????????????????????????????T??????? | | ?????????????????????????????????????????""??????? | | ?????????????????????????????????????????""??????? | | ?????????????????????????????????????????""??????? | | ?????????????????????????????????????????????????? | +----------------------------------------------------+ Best States ------------- Heat Dissipation 85 Coolant Potential 120 Energy Generation 62 Energy Capacity 2440 Matter Stores 493 Matter Capacity 500 Sight Range 22 Robot Scan Range 30 Terrain Scan Range 18 Terrain Scan Density 10 Power Amplification 30 Additional Mass Support 12 EM Shielding 4 Armor Coverage 1800 Resistance: KI 30 Resistance: TH 30 Propulsion Shielding 66 Utility Shielding 90 Phase Shifting 20 Evasion (%) 84 Targeting Accuracy 20 Melee Accuracy 8 Armor Integrity Analysis 90 Recoil Reduction 4 Offensive Hacking 53 Defensive Hacking 58 Item Schematics ----------------- Exp. Sensor Array | -9/Materials | Scanalyzed Adv. EMP Blaster | -8/Materials | Scanalyzed Gravity Neutralizing Apparatus | -8/Materials | Scanalyzed Imp. Hacking Suite | -7/Factory | Hacked Imp. VTOL Module | -7/Factory | Hacked Adv. ECM Suite | -7/Factory | Hacked Smartbomb Launcher | -7/Factory | Hacked Combat Drone Bay | -6/Data Miner | Free Lgt. Regenerative Plating | -6/Data Miner | Free Exp. Flexi-carbon Leg | -6/Data Miner | Free Cmb. Gravmag System | -6/Data Miner | Free Exp. Targeting Computer | -6/Data Miner | Free Exp. Transmission Jammer | -6/Data Miner | Free Exp. ECM Suite | -6/Data Miner | Free Mni. Smartbomb Launcher | -6/Data Miner | Free Plasma Sword | -6/Data Miner | Free Prc. Energy Filter | -5/Factory | Z-intel Exp. Heat Sink | -5/Factory | Z-intel Cld. Pulse Rifle | -5/Factory | Z-intel Imp. Energy Well | -5/Factory | Z-intel Cld. Plasma Rifle | -5/Factory | Z-intel Com. Ion Cannon | -5/Factory | Z-intel Enh. Armored Leg | -5/Factory | Z-intel Cld. Plasma Cannon | -5/Factory | Z-intel Imp. Matter Compressor | -5/Factory | Z-intel Exp. Signal Interpreter | -5/Factory | Z-intel Prc. Shock Rifle | -5/Factory | Z-intel Hvy. Proton Cannon | -5/Factory | Z-intel Imp. Linear Gravjet | -4/Factory | Z-intel Imp. Force Field | -4/Factory | Z-intel System Backup Module | -4/Factory | Z-intel Integration Mediator | -4/Factory | Z-intel Adv. Armor Integrity Analyzer | -4/Factory | Z-intel Adv. Weight Redist. System | -4/Factory | Z-intel KE Penetrator | -4/Factory | Z-intel Adv. Medium Treads | -4/Factory | Z-intel Lgt. Angular Momentum Engine | -4/Factory | Z-intel Hvy. Plasma Cannon | -4/Factory | Z-intel Med. Insulated Plating | -4/Factory | Z-intel Component Analysis Suite | -4/Factory | Z-intel Assault Drone Bay | -4/Zhirov | Free Exp. Optical Array | -4/Zhirov | Free Imp. Arc Thrower | -4/Zhirov | Free Electron Diverter | -3/Research | Scanalyzed Exp. Utility Shielding | -3/Research | Scanalyzed Exp. Reclamation Unit | -3/Testing | Z-intel Energy Mantle | -3/Testing | Z-intel Exp. Shield Generator | -3/Testing | Z-intel Diametric Drive | -3/Testing | Z-intel Adv. Power Amplifier | -3/Testing | Z-intel Hvy. Tesla Rifle | -3/Testing | Z-intel Centrium Heavy Treads | -3/Testing | Z-intel Particle Accelerator | -3/Testing | Z-intel Enh. Armored Medium Treads | -3/Testing | Z-intel Exp. Thermal Converter | -3/Testing | Z-intel Imp. Diametric Drive | -3/Testing | Z-intel Hvy. Disruptor Cannon | -3/Testing | Z-intel Corruption Screen | -3/Testing | Z-intel Shield Generator | -3/Testing | Z-intel Adv. Terrain Scanner | -3/Testing | Z-intel Hacking Suite | -3/Testing | Z-intel Imp. Coolant Injector | -3/Testing | Z-intel Com. Matter Pod | -3/Testing | Z-intel Adv. Thermal Shield | -3/Testing | Z-intel Cloaking Device | -3/Testing | Z-intel Imp. Overload Amplifier | -3/Testing | Z-intel Plasma Cutter | -3/Testing | Z-intel Imp. Antigrav System | -3/Testing | Z-intel System Restoration Module | -3/Testing | Z-intel Imp. Shield Generator | -3/Testing | Z-intel Lgt. Particle Reactor | -3/Testing | Z-intel Imp. Remote Datajack | -3/Testing | Z-intel Com. Tesla Bomb Launcher | -2/Research | Scanalyzed Robot Schematics ------------------ S-27 Virus | -6/Data Miner | Free G-50 Soldier | -6/Data Miner | Free L-41 Fighter | -6/Data Miner | Free X-72 Disruptor | -6/Data Miner | Free P-70 Sage | -6/Data Miner | Free I-36 Angel | -6/Data Miner | Free Fabricated ------------ Exp. Sensor Array | x1 | -7/Factory Imp. VTOL Module | x1 | -7/Factory Imp. VTOL Module | x1 | -7/Factory Plasma Sword | x1 | -4/Factory Mni. Smartbomb Launcher | x1 | -4/Factory Exp. Signal Interpreter | x1 | -3/Research Enh. Armored Medium Treads | x1 | -3/Testing Centrium Heavy Treads | x1 | -3/Testing Exp. Targeting Computer | x1 | -3/Testing Alien Tech Used ----------------- Core Expander Integrated Dissipator Core Stripper Sigix Terminator Achievements -------------- Sunderer Challenges ------------ None Game ------ Seed PortableSkeletonGreatsword Manual? 0 Play Time 06:06:12 Cumulative 350.0 hours Start 2021.02.20 @ 18:29:58 End 2021.02.21 @ 01:13:13 Sessions 3 Manual Loads 0 Difficulty Rogue Special Mode None Game No. 120 Rogue 116 Adventurer 4 Explorer 0 Win Type - Total 8 Types 4/1/3/0/0/0/0/0/0 Lore% 75 Gallery% 80 Achievement% 65 Wizard Run 0 Options --------- ASCII 1 Keyboard 0 Movement Arrows Keybinds 0 Fullscreen 1 Font 18/Smallcaps Map View 76x50 Tactical HUD 1 Map Filters NONE Filters NONE Steam 1 RUN: 59ae0cfe-701f-4a5c-a5f9-e6d9ac1d228c